Workbook

Sheet UI
E2: نموذج مقابلة نهاية الخدمة Exit Interview Form
E4: المعلومات الرئيسية General Information
F6: الرقم الوظيفي | K6: الإسم | M6: =IFERROR(VLOOKUP(H6,Table2[],2,0),"") ->  | R6: القسم | T6: =IFERROR(VLOOKUP(H6,Table2[],7,0),"") ->  | X6: تاريخ الإلتحاق | Z6: =IFERROR(VLOOKUP(H6,Table2[],5,0),"") ->  | AD6: أخر يوم عمل
F7: Badge # | K7: Name | R7: Department | X7: Joining Date | AD7: Last W. Day
F10: قيم كل من النقاط التالية (5 راضي تماماً - 1 غير راضي تماماً) | M10: Evaluate below points (5 very satisfied - 1 not satisfied) | U10: أسئلة عامة | AH10: General Questions
H12: هل مكان العمل مناسب صحياً وعملياً ؟ | V12: ما هو أكثر شيء أعجبك في العمل مع الشركة ؟
H13: Is the workplace healthy and practical? | V13: What did you like most about working for the company?
H15: هل لديك إطلاع بالسياسات والأجراءات وهل ترى أنها مناسبة وعادلة؟
H16: Are you familiar with policies and you think they are appropriate ?
H18: هل الرواتب المميزات الممنوحة لك جيدة وتكافئ وزن المهام المكلة إليك؟ | V18: ما هو أكثر شيء لم يعجبك في العمل مع الشركة ؟
H19: Are the salary & Benefits equal of the tasks assigned to you? | V19: What did you dislike most about working for the company?
H21: هل ترى أن الشركة تولي اهتماماً بالموظفين؟
H22: Do you think the company pays attention to employees?
H24: هل تلقيت الدعم المناسب من مديرك المباشر ؟ | V24: ماذا تقترح لتطوير بيئة العمل في قسمك
H25: Did you receive the appropriate support from your line manager? | V25: What are your suggestions for improving your department?
H27: كيف ترى توجهات الشركة الإستراتيجية وقدرتها على التغيير؟
H28: How do you see the company's stratgy and ability to change?
H30: هل تلقيت التدريب المناسب؟ | V30: ماذا تقترح لتطوير بيئة العمل في الشركة
H31: Did you receive the appropriate training? | V31: What are your suggestions for improving the company?
H33: هل كان لديك وضوح تام بالمهام والمسؤوليات الموكلة إليك ؟
H34: Did you have clarity about your tasks and responsibilities ?
H36: هل حصلت على فرصة الزيادة والترقية بطريقة عادلة ومنصفة ؟ | V36: ما هو السبب الفعلي الذي جعلك تغادر الشركة
H37: Did you get the opportunity to increased and promoted ? | V37: What are your suggestions for improving the company?
H39: مدى التعاون والعلاقات البنائة بين فريق العمل. | AA39: إذكرها Mention it
H40: The cooperation and relationships between the work team.
AO46: الراتب والمميزات - Salary & Benefits
AO47: الحصول على فرصة أفضل Better Opportunity
AO48: الإنتقال إلى جهة حكومية Joining Gov.
AO49: تغيير مكان سكني Relocate to other place
AO50: مضايقة مديري أو زملائي Harassment of my manager or colleagues
AO51: بيئة العمل غير محفزة Disengagement in work environment
AO52: ظروف عائلية Family issues
AO53: أخرى Other

Sheet EvalDB
A1: الرقم الوظيفي | B1: الإسم | C1: القسم | D1: تاريخ المباشرة | E1: تاريخ المغادرة | F1: هل مكان العمل مناسب صحياً وعملياً ؟ | G1: هل لديك إطلاع بالسياسات والأجراءات وهل ترى أنها مناسبة وعادلة؟ | H1: هل الرواتب المميزات الممنوحة لك جيدة وتكافئ وزن المهام المكلة إليك؟ | I1: هل ترى أن الشركة تولي اهتماماً بالموظفين؟ | J1: هل تلقيت الدعم المناسب من مديرك المباشر ؟ | K1: كيف ترى توجهات الشركة الإستراتيجية وقدرتها على التغيير؟ | L1: هل تلقيت التدريب المناسب؟ | M1: هل كان لديك وضوح تام بالمهام والمسؤوليات الموكلة إليك ؟ | N1: هل حصلت على فرصة الزيادة والترقية بطريقة عادلة ومنصفة ؟ | O1: مدى التعاون والعلاقات البنائة بين فريق العمل. | P1: ما هو أكثر شيء أعجبك في العمل مع الشركة ؟ | Q1: ما هو أكثر شيء لم يعجبك في العمل مع الشركة ؟ | R1: ماذا تقترح لتطوير بيئة العمل في قسمك | S1: ماذا تقترح لتطوير بيئة العمل في الشركة | T1: ما هو السبب الفعلي الذي جعلك تترك تغادر الشركة | U1: أسباب أخرى | V1: العمر بالشركة | W1: Month
A2: 4029 | B2: وليد عبدالحافظ عناب | C2: العمليات | D2: 2018-01-29 | E2: 2021-03-26 | F2: 4 | G2: 5 | H2: 5 | I2: 5 | J2: 3 | K2: 3 | L2: 1 | M2: 2 | N2: 1 | O2: 4 | T2: الراتب والمميزات - Salary & Benefits | V2: =(Table3[[#This Row],[تاريخ المغادرة]]-Table3[[#This Row],[تاريخ المباشرة]])/365 -> 3.156164384 | W2: =MONTH(Table3[[#This Row],[تاريخ المغادرة]]) -> 3
A3: 3645 | B3: احمد خالد قاسم عبابنه | C3: المالية | D3: 2016-06-10 | E3: 2021-04-15 | F3: 2 | G3: 3 | H3: 1 | I3: 1 | J3: 3 | K3: 2 | L3: 2 | M3: 5 | N3: 2 | O3: 3 | T3: الحصول على فرصة أفضل Better Opportunity | V3: =(Table3[[#This Row],[تاريخ المغادرة]]-Table3[[#This Row],[تاريخ المباشرة]])/365 -> 4.849315068 | W3: =MONTH(Table3[[#This Row],[تاريخ المغادرة]]) -> 4
A4: 3747 | B4: راية احمد عطيه الطويل | C4: المالية | D4: 2017-03-25 | E4: 2021-03-21 | F4: 2 | G4: 3 | H4: 1 | I4: 1 | J4: 1 | K4: 2 | L4: 2 | M4: 4 | N4: 4 | O4: 1 | T4: الإنتقال إلى جهة حكومية Joining Gov. | V4: =(Table3[[#This Row],[تاريخ المغادرة]]-Table3[[#This Row],[تاريخ المباشرة]])/365 -> 3.991780822 | W4: =MONTH(Table3[[#This Row],[تاريخ المغادرة]]) -> 3
A5: 4788 | B5: محمد يحيى محمد الغزاوى | C5: الموارد البشرية | D5: 2017-10-28 | E5: 2021-05-06 | F5: 3 | G5: 1 | H5: 1 | I5: 4 | J5: 2 | K5: 2 | L5: 3 | M5: 2 | N5: 3 | O5: 2 | T5: الحصول على فرصة أفضل Better Opportunity | V5: =(Table3[[#This Row],[تاريخ المغادرة]]-Table3[[#This Row],[تاريخ المباشرة]])/365 -> 3.523287671 | W5: =MONTH(Table3[[#This Row],[تاريخ المغادرة]]) -> 5
A6: 9719 | B6: إباء جمال محمد الشرفات | C6: المستودعات | D6: 2019-07-05 | E6: 2021-02-01 | F6: 3 | G6: 2 | H6: 4 | I6: 2 | J6: 5 | K6: 3 | L6: 2 | M6: 5 | N6: 4 | O6: 5 | T6: الإنتقال إلى جهة حكومية Joining Gov. | V6: =(Table3[[#This Row],[تاريخ المغادرة]]-Table3[[#This Row],[تاريخ المباشرة]])/365 -> 1.580821918 | W6: =MONTH(Table3[[#This Row],[تاريخ المغادرة]]) -> 2
A7: 1217 | B7: شهد احمد جعفر خريسات | C7: الخدمات اللوجستية | D7: 2018-12-30 | E7: 2021-03-19 | F7: 1 | G7: 3 | H7: 5 | I7: 3 | J7: 3 | K7: 4 | L7: 2 | M7: 5 | N7: 3 | O7: 2 | T7: تغيير مكان سكني Relocate to other place | V7: =(Table3[[#This Row],[تاريخ المغادرة]]-Table3[[#This Row],[تاريخ المباشرة]])/365 -> 2.219178082 | W7: =MONTH(Table3[[#This Row],[تاريخ المغادرة]]) -> 3
A8: 3444 | B8: ميس هلال حمدان محيسن | C8: الموارد البشرية | D8: 2012-10-11 | E8: 2021-05-03 | F8: 4 | G8: 1 | H8: 3 | I8: 3 | J8: 4 | K8: 5 | L8: 1 | M8: 2 | N8: 5 | O8: 4 | T8: مضايقة مديري أو زملائي Harassment of my manager or colleagues | V8: =(Table3[[#This Row],[تاريخ المغادرة]]-Table3[[#This Row],[تاريخ المباشرة]])/365 -> 8.564383562 | W8: =MONTH(Table3[[#This Row],[تاريخ المغادرة]]) -> 5
A9: 3497 | B9: ايمان فرحان عطية الغزاوى | C9: العمليات | D9: 2018-03-18 | E9: 2021-02-07 | F9: 4 | G9: 1 | H9: 1 | I9: 5 | J9: 2 | K9: 3 | L9: 1 | M9: 3 | N9: 3 | O9: 4 | T9: بيئة العمل غير محفزة Disengagement in work environment | V9: =(Table3[[#This Row],[تاريخ المغادرة]]-Table3[[#This Row],[تاريخ المباشرة]])/365 -> 2.895890411 | W9: =MONTH(Table3[[#This Row],[تاريخ المغادرة]]) -> 2
A10: 5412 | B10: زينة يعقوب احمد مقدادي | C10: العمليات | D10: 2019-09-29 | E10: 2021-02-14 | F10: 4 | G10: 1 | H10: 3 | I10: 3 | J10: 4 | K10: 3 | L10: 3 | M10: 1 | N10: 2 | O10: 4 | T10: ظروف عائلية Family issues | V10: =(Table3[[#This Row],[تاريخ المغادرة]]-Table3[[#This Row],[تاريخ المباشرة]])/365 -> 1.380821918 | W10: =MONTH(Table3[[#This Row],[تاريخ المغادرة]]) -> 2
A11: 3399 | B11: معاذ عبدالمجيد محمود مومني العاشه | C11: المبيعات | D11: 2013-10-09 | E11: 2021-01-28 | F11: 5 | G11: 3 | H11: 2 | I11: 5 | J11: 3 | K11: 3 | L11: 2 | M11: 3 | N11: 1 | O11: 4 | T11: أخرى Other | V11: =(Table3[[#This Row],[تاريخ المغادرة]]-Table3[[#This Row],[تاريخ المباشرة]])/365 -> 7.309589041 | W11: =MONTH(Table3[[#This Row],[تاريخ المغادرة]]) -> 1
A12: 2414 | B12: احمد ايمن محمد رشيد | C12: العمليات | D12: 2012-08-31 | E12: 2021-05-13 | F12: 3 | G12: 1 | H12: 2 | I12: 5 | J12: 2 | K12: 4 | L12: 1 | M12: 1 | N12: 4 | O12: 3 | T12: الراتب والمميزات - Salary & Benefits | V12: =(Table3[[#This Row],[تاريخ المغادرة]]-Table3[[#This Row],[تاريخ المباشرة]])/365 -> 8.704109589 | W12: =MONTH(Table3[[#This Row],[تاريخ المغادرة]]) -> 5
A13: 6424 | B13: محمود سليمان محمد صبح | C13: العمليات | D13: 2014-02-26 | E13: 2021-01-08 | F13: 4 | G13: 2 | H13: 2 | I13: 2 | J13: 2 | K13: 2 | L13: 2 | M13: 2 | N13: 5 | O13: 3 | T13: الحصول على فرصة أفضل Better Opportunity | V13: =(Table3[[#This Row],[تاريخ المغادرة]]-Table3[[#This Row],[تاريخ المباشرة]])/365 -> 6.871232877 | W13: =MONTH(Table3[[#This Row],[تاريخ المغادرة]]) -> 1
A14: 9000 | B14: بكر سمير محمود قزق | C14: الموارد البشرية | D14: 2016-05-27 | E14: 2021-01-25 | F14: 1 | G14: 2 | H14: 2 | I14: 2 | J14: 2 | K14: 2 | L14: 2 | M14: 2 | N14: 2 | O14: 4 | T14: الإنتقال إلى جهة حكومية Joining Gov. | V14: =(Table3[[#This Row],[تاريخ المغادرة]]-Table3[[#This Row],[تاريخ المباشرة]])/365 -> 4.668493151 | W14: =MONTH(Table3[[#This Row],[تاريخ المغادرة]]) -> 1
A15: 7673 | B15: يوسف عبدالفتاح حسن الخليلي عطا | C15: المستودعات | D15: 2010-04-15 | E15: 2021-01-20 | F15: 1 | G15: 2 | H15: 2 | I15: 2 | J15: 2 | K15: 2 | L15: 2 | M15: 2 | N15: 1 | O15: 3 | T15: تغيير مكان سكني Relocate to other place | V15: =(Table3[[#This Row],[تاريخ المغادرة]]-Table3[[#This Row],[تاريخ المباشرة]])/365 -> 10.77534247 | W15: =MONTH(Table3[[#This Row],[تاريخ المغادرة]]) -> 1
A16: 3639 | B16: سالي سليمان عبدالعزيز بني | C16: الموارد البشرية | D16: 2014-03-04 | E16: 2021-01-23 | F16: 1 | G16: 2 | H16: 2 | I16: 2 | J16: 2 | K16: 2 | L16: 2 | M16: 2 | N16: 5 | O16: 4 | T16: مضايقة مديري أو زملائي Harassment of my manager or colleagues | V16: =(Table3[[#This Row],[تاريخ المغادرة]]-Table3[[#This Row],[تاريخ المباشرة]])/365 -> 6.895890411 | W16: =MONTH(Table3[[#This Row],[تاريخ المغادرة]]) -> 1
A17: 7540 | B17: مياده عزت ابراهيم الحميد | C17: المبيعات | D17: 2016-05-04 | E17: 2021-03-12 | F17: 2 | G17: 2 | H17: 2 | I17: 2 | J17: 2 | K17: 2 | L17: 2 | M17: 2 | N17: 4 | O17: 3 | T17: بيئة العمل غير محفزة Disengagement in work environment | V17: =(Table3[[#This Row],[تاريخ المغادرة]]-Table3[[#This Row],[تاريخ المباشرة]])/365 -> 4.857534247 | W17: =MONTH(Table3[[#This Row],[تاريخ المغادرة]]) -> 3
A18: 5371 | B18: ميس مشهور احميدي مصطفى | C18: المبيعات | D18: 2014-03-14 | E18: 2021-03-22 | F18: 4 | G18: 2 | H18: 2 | I18: 2 | J18: 2 | K18: 2 | L18: 2 | M18: 2 | N18: 4 | O18: 4 | T18: ظروف عائلية Family issues | V18: =(Table3[[#This Row],[تاريخ المغادرة]]-Table3[[#This Row],[تاريخ المباشرة]])/365 -> 7.02739726 | W18: =MONTH(Table3[[#This Row],[تاريخ المغادرة]]) -> 3
A19: 5616 | B19: ايهاب مدحت محمد بطايحة | C19: المالية | D19: 2018-11-15 | E19: 2021-01-29 | F19: 1 | G19: 2 | H19: 2 | I19: 2 | J19: 2 | K19: 2 | L19: 4 | M19: 2 | N19: 3 | O19: 4 | T19: أخرى Other | V19: =(Table3[[#This Row],[تاريخ المغادرة]]-Table3[[#This Row],[تاريخ المباشرة]])/365 -> 2.208219178 | W19: =MONTH(Table3[[#This Row],[تاريخ المغادرة]]) -> 1
A20: 4941 | B20: يمامه يحيى مصطفى المومني | C20: المالية | D20: 2013-03-16 | E20: 2021-03-20 | F20: 2 | G20: 2 | H20: 2 | I20: 2 | J20: 2 | K20: 2 | L20: 4 | M20: 2 | N20: 5 | O20: 5 | T20: أخرى Other | V20: =(Table3[[#This Row],[تاريخ المغادرة]]-Table3[[#This Row],[تاريخ المباشرة]])/365 -> 8.016438356 | W20: =MONTH(Table3[[#This Row],[تاريخ المغادرة]]) -> 3
A21: 2986 | B21: اسيل عبدالله سليمان الروسان | C21: المالية | D21: 2010-05-03 | E21: 2021-05-02 | F21: 3 | G21: 2 | H21: 2 | I21: 2 | J21: 2 | K21: 2 | L21: 4 | M21: 2 | N21: 1 | O21: 4 | T21: الراتب والمميزات - Salary & Benefits | V21: =(Table3[[#This Row],[تاريخ المغادرة]]-Table3[[#This Row],[تاريخ المباشرة]])/365 -> 11.00547945 | W21: =MONTH(Table3[[#This Row],[تاريخ المغادرة]]) -> 5
A22: 7862 | B22: شيماء عزات جميل القيام | C22: المالية | D22: 2012-06-19 | E22: 2021-05-08 | F22: 5 | G22: 2 | H22: 2 | I22: 2 | J22: 2 | K22: 2 | L22: 4 | M22: 2 | N22: 4 | O22: 3 | T22: الحصول على فرصة أفضل Better Opportunity | V22: =(Table3[[#This Row],[تاريخ المغادرة]]-Table3[[#This Row],[تاريخ المباشرة]])/365 -> 8.890410959 | W22: =MONTH(Table3[[#This Row],[تاريخ المغادرة]]) -> 5
A23: 8014 | B23: هديل منير صالح القيس | C23: المالية | D23: 2014-10-23 | E23: 2021-03-18 | F23: 4 | G23: 2 | H23: 2 | I23: 2 | J23: 2 | K23: 2 | L23: 4 | M23: 2 | N23: 5 | O23: 5 | T23: الراتب والمميزات - Salary & Benefits | V23: =(Table3[[#This Row],[تاريخ المغادرة]]-Table3[[#This Row],[تاريخ المباشرة]])/365 -> 6.405479452 | W23: =MONTH(Table3[[#This Row],[تاريخ المغادرة]]) -> 3
A24: 4383 | B24: عمر حسني جاسم موصلي | C24: المستودعات | D24: 2019-01-02 | E24: 2021-03-20 | F24: 5 | G24: 2 | H24: 3 | I24: 3 | J24: 4 | K24: 2 | L24: 1 | M24: 5 | N24: 1 | O24: 3 | T24: تغيير مكان سكني Relocate to other place | V24: =(Table3[[#This Row],[تاريخ المغادرة]]-Table3[[#This Row],[تاريخ المباشرة]])/365 -> 2.21369863 | W24: =MONTH(Table3[[#This Row],[تاريخ المغادرة]]) -> 3
A25: 7003 | B25: ساره جمال سليمان الجميلي | C25: المالية | D25: 2012-04-20 | E25: 2021-02-04 | F25: 5 | G25: 1 | H25: 2 | I25: 4 | J25: 1 | K25: 4 | L25: 4 | M25: 5 | N25: 3 | O25: 4 | T25: مضايقة مديري أو زملائي Harassment of my manager or colleagues | V25: =(Table3[[#This Row],[تاريخ المغادرة]]-Table3[[#This Row],[تاريخ المباشرة]])/365 -> 8.8 | W25: =MONTH(Table3[[#This Row],[تاريخ المغادرة]]) -> 2
A26: 2190 | B26: فاطمة بسام عبدالله العيسى | C26: المستودعات | D26: 2014-07-03 | E26: 2021-02-15 | F26: 5 | G26: 4 | H26: 2 | I26: 1 | J26: 2 | K26: 4 | L26: 3 | M26: 2 | N26: 3 | O26: 4 | T26: بيئة العمل غير محفزة Disengagement in work environment | V26: =(Table3[[#This Row],[تاريخ المغادرة]]-Table3[[#This Row],[تاريخ المباشرة]])/365 -> 6.62739726 | W26: =MONTH(Table3[[#This Row],[تاريخ المغادرة]]) -> 2
A27: 1994 | B27: وسيم عماد سلامه عبيدات | C27: المالية | D27: 2016-06-16 | E27: 2021-03-15 | F27: 3 | G27: 5 | H27: 1 | I27: 3 | J27: 4 | K27: 4 | L27: 3 | M27: 3 | N27: 1 | O27: 4 | T27: ظروف عائلية Family issues | V27: =(Table3[[#This Row],[تاريخ المغادرة]]-Table3[[#This Row],[تاريخ المباشرة]])/365 -> 4.747945205 | W27: =MONTH(Table3[[#This Row],[تاريخ المغادرة]]) -> 3
A28: 3324 | B28: زبيدة محمد احمد الرشدان | C28: المالية | D28: 2014-11-07 | E28: 2021-02-24 | F28: 2 | G28: 4 | H28: 4 | I28: 1 | J28: 3 | K28: 2 | L28: 4 | M28: 4 | N28: 1 | O28: 5 | T28: الحصول على فرصة أفضل Better Opportunity | V28: =(Table3[[#This Row],[تاريخ المغادرة]]-Table3[[#This Row],[تاريخ المباشرة]])/365 -> 6.304109589 | W28: =MONTH(Table3[[#This Row],[تاريخ المغادرة]]) -> 2
A29: 5571 | B29: قدامه عادل حمد الصمادي خصاونه | C29: المالية | D29: 2010-03-04 | E29: 2021-02-13 | F29: 4 | G29: 4 | H29: 5 | I29: 1 | J29: 2 | K29: 1 | L29: 4 | M29: 3 | N29: 3 | O29: 5 | T29: الراتب والمميزات - Salary & Benefits | V29: =(Table3[[#This Row],[تاريخ المغادرة]]-Table3[[#This Row],[تاريخ المباشرة]])/365 -> 10.95616438 | W29: =MONTH(Table3[[#This Row],[تاريخ المغادرة]]) -> 2
A30: 6629 | B30: حسن هيثم مصطفى الله الزعبي | C30: الخدمات اللوجستية | D30: 2019-01-03 | E30: 2021-04-29 | F30: 5 | G30: 4 | H30: 5 | I30: 2 | J30: 1 | K30: 3 | L30: 4 | M30: 3 | N30: 3 | O30: 4 | T30: تغيير مكان سكني Relocate to other place | V30: =(Table3[[#This Row],[تاريخ المغادرة]]-Table3[[#This Row],[تاريخ المباشرة]])/365 -> 2.320547945 | W30: =MONTH(Table3[[#This Row],[تاريخ المغادرة]]) -> 4
A31: 4923 | B31: تقى محمود ضيف فلاح | C31: المالية | D31: 2014-08-02 | E31: 2021-02-25 | F31: 4 | G31: 5 | H31: 4 | I31: 3 | J31: 1 | K31: 1 | L31: 4 | M31: 5 | N31: 5 | O31: 3 | T31: مضايقة مديري أو زملائي Harassment of my manager or colleagues | V31: =(Table3[[#This Row],[تاريخ المغادرة]]-Table3[[#This Row],[تاريخ المباشرة]])/365 -> 6.57260274 | W31: =MONTH(Table3[[#This Row],[تاريخ المغادرة]]) -> 2
A32: 6974 | B32: اريج ايمن زهير فني الدين | C32: المستودعات | D32: 2019-11-16 | E32: 2021-03-16 | F32: 1 | G32: 2 | H32: 4 | I32: 4 | J32: 5 | K32: 1 | L32: 3 | M32: 2 | N32: 3 | O32: 5 | T32: بيئة العمل غير محفزة Disengagement in work environment | V32: =(Table3[[#This Row],[تاريخ المغادرة]]-Table3[[#This Row],[تاريخ المباشرة]])/365 -> 1.331506849 | W32: =MONTH(Table3[[#This Row],[تاريخ المغادرة]]) -> 3
A33: 8834 | B33: عمر احمد علي سعد | C33: المستودعات | D33: 2011-06-23 | E33: 2021-02-04 | F33: 3 | G33: 3 | H33: 4 | I33: 1 | J33: 5 | K33: 4 | L33: 4 | M33: 3 | N33: 2 | O33: 3 | T33: ظروف عائلية Family issues | V33: =(Table3[[#This Row],[تاريخ المغادرة]]-Table3[[#This Row],[تاريخ المباشرة]])/365 -> 9.62739726 | W33: =MONTH(Table3[[#This Row],[تاريخ المغادرة]]) -> 2
A34: 6128 | B34: وسن تحسين سليم علي | C34: المالية | D34: 2015-08-21 | E34: 2021-01-25 | F34: 5 | G34: 5 | H34: 3 | I34: 4 | J34: 3 | K34: 2 | L34: 3 | M34: 3 | N34: 5 | O34: 4 | T34: أخرى Other | V34: =(Table3[[#This Row],[تاريخ المغادرة]]-Table3[[#This Row],[تاريخ المباشرة]])/365 -> 5.435616438 | W34: =MONTH(Table3[[#This Row],[تاريخ المغادرة]]) -> 1
A35: 1742 | B35: عبدالكريم هاني ذيب السقار | C35: المالية | D35: 2016-10-14 | E35: 2021-05-16 | F35: 1 | G35: 5 | H35: 5 | I35: 5 | J35: 3 | K35: 4 | L35: 4 | M35: 4 | N35: 1 | O35: 5 | T35: أخرى Other | V35: =(Table3[[#This Row],[تاريخ المغادرة]]-Table3[[#This Row],[تاريخ المباشرة]])/365 -> 4.589041096 | W35: =MONTH(Table3[[#This Row],[تاريخ المغادرة]]) -> 5
A36: 9809 | B36: نور محمد محمد عزام شقلة | C36: الخدمات اللوجستية | D36: 2010-04-23 | E36: 2021-04-22 | F36: 1 | G36: 4 | H36: 2 | I36: 5 | J36: 1 | K36: 4 | L36: 1 | M36: 3 | N36: 1 | O36: 3 | T36: الراتب والمميزات - Salary & Benefits | V36: =(Table3[[#This Row],[تاريخ المغادرة]]-Table3[[#This Row],[تاريخ المباشرة]])/365 -> 11.00547945 | W36: =MONTH(Table3[[#This Row],[تاريخ المغادرة]]) -> 4
A37: 7727 | B37: ماهر علي عبدالفتاح الفتاح البلادي | C37: الخدمات اللوجستية | D37: 2018-10-18 | E37: 2021-04-19 | F37: 4 | G37: 1 | H37: 2 | I37: 2 | J37: 3 | K37: 2 | L37: 4 | M37: 2 | N37: 2 | O37: 4 | T37: الحصول على فرصة أفضل Better Opportunity | V37: =(Table3[[#This Row],[تاريخ المغادرة]]-Table3[[#This Row],[تاريخ المباشرة]])/365 -> 2.504109589 | W37: =MONTH(Table3[[#This Row],[تاريخ المغادرة]]) -> 4
A38: 3748 | B38: اسلام حمدي عبد الله | C38: المستودعات | D38: 2012-02-17 | E38: 2021-02-06 | F38: 3 | G38: 4 | H38: 4 | I38: 2 | J38: 2 | K38: 2 | L38: 4 | M38: 2 | N38: 2 | O38: 4 | T38: الراتب والمميزات - Salary & Benefits | V38: =(Table3[[#This Row],[تاريخ المغادرة]]-Table3[[#This Row],[تاريخ المباشرة]])/365 -> 8.978082192 | W38: =MONTH(Table3[[#This Row],[تاريخ المغادرة]]) -> 2
A39: 5583 | B39: دعاء نعيم ضيف الشلبي | C39: الخدمات اللوجستية | D39: 2019-08-10 | E39: 2021-04-02 | F39: 3 | G39: 1 | H39: 4 | I39: 1 | J39: 1 | K39: 2 | L39: 4 | M39: 2 | N39: 2 | O39: 5 | T39: تغيير مكان سكني Relocate to other place | V39: =(Table3[[#This Row],[تاريخ المغادرة]]-Table3[[#This Row],[تاريخ المباشرة]])/365 -> 1.646575342 | W39: =MONTH(Table3[[#This Row],[تاريخ المغادرة]]) -> 4
A40: 5356 | B40: آية عبدالله عبدالباري عواشره أبو حمد | C40: المالية | D40: 2016-06-05 | E40: 2021-03-25 | F40: 5 | G40: 2 | H40: 3 | I40: 2 | J40: 4 | K40: 2 | L40: 4 | M40: 2 | N40: 2 | O40: 4 | T40: مضايقة مديري أو زملائي Harassment of my manager or colleagues | V40: =(Table3[[#This Row],[تاريخ المغادرة]]-Table3[[#This Row],[تاريخ المباشرة]])/365 -> 4.805479452 | W40: =MONTH(Table3[[#This Row],[تاريخ المغادرة]]) -> 3
A41: 5546 | B41: صافي عبداللطيف احمد الفراج روحي | C41: المالية | D41: 2012-04-01 | E41: 2021-01-04 | F41: 5 | G41: 2 | H41: 4 | I41: 4 | J41: 4 | K41: 2 | L41: 4 | M41: 2 | N41: 2 | O41: 4 | T41: بيئة العمل غير محفزة Disengagement in work environment | V41: =(Table3[[#This Row],[تاريخ المغادرة]]-Table3[[#This Row],[تاريخ المباشرة]])/365 -> 8.767123288 | W41: =MONTH(Table3[[#This Row],[تاريخ المغادرة]]) -> 1
A42: 8501 | B42: بسمه علي رفة محمد ارشيد | C42: الخدمات اللوجستية | D42: 2013-12-18 | E42: 2021-04-27 | F42: 4 | G42: 1 | H42: 4 | I42: 4 | J42: 1 | K42: 2 | L42: 4 | M42: 2 | N42: 2 | O42: 4 | T42: ظروف عائلية Family issues | V42: =(Table3[[#This Row],[تاريخ المغادرة]]-Table3[[#This Row],[تاريخ المباشرة]])/365 -> 7.361643836 | W42: =MONTH(Table3[[#This Row],[تاريخ المغادرة]]) -> 4
A43: 5556 | B43: مها سعود عبدالله بني | C43: المالية | D43: 2012-11-04 | E43: 2021-02-03 | F43: 3 | G43: 1 | H43: 5 | I43: 5 | J43: 5 | K43: 2 | L43: 4 | M43: 2 | N43: 2 | O43: 4 | T43: الراتب والمميزات - Salary & Benefits | V43: =(Table3[[#This Row],[تاريخ المغادرة]]-Table3[[#This Row],[تاريخ المباشرة]])/365 -> 8.254794521 | W43: =MONTH(Table3[[#This Row],[تاريخ المغادرة]]) -> 2
A44: 3656 | B44: هالة روحي عبدالحليم كنعان | C44: المالية | D44: 2018-08-12 | E44: 2021-03-11 | F44: 4 | G44: 4 | H44: 4 | I44: 1 | J44: 2 | K44: 1 | L44: 4 | M44: 2 | N44: 4 | O44: 5 | T44: الحصول على فرصة أفضل Better Opportunity | V44: =(Table3[[#This Row],[تاريخ المغادرة]]-Table3[[#This Row],[تاريخ المباشرة]])/365 -> 2.580821918 | W44: =MONTH(Table3[[#This Row],[تاريخ المغادرة]]) -> 3
A45: 3970 | B45: محمد منير احمد الرقب | C45: المالية | D45: 2018-04-28 | E45: 2021-02-12 | F45: 5 | G45: 5 | H45: 1 | I45: 4 | J45: 5 | K45: 1 | L45: 3 | M45: 4 | N45: 3 | O45: 4 | T45: الإنتقال إلى جهة حكومية Joining Gov. | V45: =(Table3[[#This Row],[تاريخ المغادرة]]-Table3[[#This Row],[تاريخ المباشرة]])/365 -> 2.797260274 | W45: =MONTH(Table3[[#This Row],[تاريخ المغادرة]]) -> 2
A46: 6617 | B46: رغد سعيد احمد الحسن | C46: المالية | D46: 2016-04-21 | E46: 2021-02-26 | F46: 5 | G46: 4 | H46: 1 | I46: 4 | J46: 2 | K46: 2 | L46: 4 | M46: 1 | N46: 4 | O46: 4 | T46: تغيير مكان سكني Relocate to other place | V46: =(Table3[[#This Row],[تاريخ المغادرة]]-Table3[[#This Row],[تاريخ المباشرة]])/365 -> 4.854794521 | W46: =MONTH(Table3[[#This Row],[تاريخ المغادرة]]) -> 2
A47: 7532 | B47: دانا يوسف بخيت فردوس | C47: المالية | D47: 2011-04-24 | E47: 2021-03-21 | F47: 5 | G47: 1 | H47: 5 | I47: 1 | J47: 1 | K47: 1 | L47: 3 | M47: 5 | N47: 5 | O47: 4 | T47: مضايقة مديري أو زملائي Harassment of my manager or colleagues | V47: =(Table3[[#This Row],[تاريخ المغادرة]]-Table3[[#This Row],[تاريخ المباشرة]])/365 -> 9.915068493 | W47: =MONTH(Table3[[#This Row],[تاريخ المغادرة]]) -> 3
A48: 1809 | B48: هبه جديع عبدالكريم بدوره شخددم | C48: المستودعات | D48: 2011-11-16 | E48: 2021-02-19 | F48: 1 | G48: 5 | H48: 1 | I48: 4 | J48: 5 | K48: 3 | L48: 1 | M48: 4 | N48: 3 | O48: 5 | T48: بيئة العمل غير محفزة Disengagement in work environment | V48: =(Table3[[#This Row],[تاريخ المغادرة]]-Table3[[#This Row],[تاريخ المباشرة]])/365 -> 9.268493151 | W48: =MONTH(Table3[[#This Row],[تاريخ المغادرة]]) -> 2
A49: 9681 | B49: رهف اكرم أحمد عبيدات ابو | C49: المالية | D49: 2020-06-12 | E49: 2021-03-15 | F49: 1 | G49: 5 | H49: 1 | I49: 1 | J49: 3 | K49: 2 | L49: 4 | M49: 4 | N49: 3 | O49: 4 | T49: ظروف عائلية Family issues | V49: =(Table3[[#This Row],[تاريخ المغادرة]]-Table3[[#This Row],[تاريخ المباشرة]])/365 -> 0.7561643836 | W49: =MONTH(Table3[[#This Row],[تاريخ المغادرة]]) -> 3
A50: 3990 | B50: ساجده مجدي عبدالعزيز صبحي | C50: المالية | D50: 2010-08-18 | E50: 2021-05-13 | F50: 2 | G50: 3 | H50: 4 | I50: 5 | J50: 3 | K50: 1 | L50: 3 | M50: 4 | N50: 3 | O50: 5 | T50: أخرى Other | V50: =(Table3[[#This Row],[تاريخ المغادرة]]-Table3[[#This Row],[تاريخ المباشرة]])/365 -> 10.74246575 | W50: =MONTH(Table3[[#This Row],[تاريخ المغادرة]]) -> 5
A51: 5985 | B51: رانيا حسين محمد الراشد شرير | C51: المالية | D51: 2018-12-02 | E51: 2021-01-15 | F51: 2 | G51: 2 | H51: 2 | I51: 5 | J51: 5 | K51: 1 | L51: 4 | M51: 5 | N51: 4 | O51: 5 | T51: الحصول على فرصة أفضل Better Opportunity | V51: =(Table3[[#This Row],[تاريخ المغادرة]]-Table3[[#This Row],[تاريخ المباشرة]])/365 -> 2.123287671 | W51: =MONTH(Table3[[#This Row],[تاريخ المغادرة]]) -> 1
A52: 7163 | B52: هديل امجد علي موسى | C52: المالية | D52: 2013-04-03 | E52: 2021-03-17 | F52: 1 | G52: 3 | H52: 5 | I52: 2 | J52: 2 | K52: 3 | L52: 4 | M52: 2 | N52: 4 | O52: 3 | T52: الراتب والمميزات - Salary & Benefits | V52: =(Table3[[#This Row],[تاريخ المغادرة]]-Table3[[#This Row],[تاريخ المباشرة]])/365 -> 7.95890411 | W52: =MONTH(Table3[[#This Row],[تاريخ المغادرة]]) -> 3
A53: 7043 | B53: الاء عبدالله جمال العاني الداود | C53: المالية | D53: 2012-02-11 | E53: 2021-03-18 | F53: 4 | G53: 5 | H53: 2 | I53: 2 | J53: 2 | K53: 2 | L53: 4 | M53: 3 | N53: 5 | O53: 4 | T53: تغيير مكان سكني Relocate to other place | V53: =(Table3[[#This Row],[تاريخ المغادرة]]-Table3[[#This Row],[تاريخ المباشرة]])/365 -> 9.104109589 | W53: =MONTH(Table3[[#This Row],[تاريخ المغادرة]]) -> 3
A54: 5250 | B54: بتلاء محمد رشيد موسى | C54: المالية | D54: 2018-12-20 | E54: 2021-03-04 | F54: 1 | G54: 3 | H54: 2 | I54: 2 | J54: 2 | K54: 2 | L54: 4 | M54: 3 | N54: 5 | O54: 4 | T54: مضايقة مديري أو زملائي Harassment of my manager or colleagues | V54: =(Table3[[#This Row],[تاريخ المغادرة]]-Table3[[#This Row],[تاريخ المباشرة]])/365 -> 2.205479452 | W54: =MONTH(Table3[[#This Row],[تاريخ المغادرة]]) -> 3
A55: 1591 | B55: هبة مازن شكري السقا | C55: المستودعات | D55: 2018-06-28 | E55: 2021-03-03 | F55: 4 | G55: 3 | H55: 2 | I55: 2 | J55: 2 | K55: 2 | L55: 4 | M55: 3 | N55: 1 | O55: 4 | T55: بيئة العمل غير محفزة Disengagement in work environment | V55: =(Table3[[#This Row],[تاريخ المغادرة]]-Table3[[#This Row],[تاريخ المباشرة]])/365 -> 2.682191781 | W55: =MONTH(Table3[[#This Row],[تاريخ المغادرة]]) -> 3
A56: 4746 | B56: سؤدد محمد بركات سليمان | C56: المبيعات | D56: 2011-06-12 | E56: 2021-02-05 | F56: 1 | G56: 3 | H56: 2 | I56: 2 | J56: 2 | K56: 2 | L56: 4 | M56: 4 | N56: 5 | O56: 4 | T56: ظروف عائلية Family issues | V56: =(Table3[[#This Row],[تاريخ المغادرة]]-Table3[[#This Row],[تاريخ المباشرة]])/365 -> 9.660273973 | W56: =MONTH(Table3[[#This Row],[تاريخ المغادرة]]) -> 2
A57: 6023 | B57: عبدالحكيم زهير محمد الصبح | C57: المالية | D57: 2020-03-08 | E57: 2021-03-27 | F57: 1 | G57: 5 | H57: 2 | I57: 2 | J57: 2 | K57: 2 | L57: 4 | M57: 1 | N57: 5 | O57: 3 | T57: أخرى Other | V57: =(Table3[[#This Row],[تاريخ المغادرة]]-Table3[[#This Row],[تاريخ المباشرة]])/365 -> 1.052054795 | W57: =MONTH(Table3[[#This Row],[تاريخ المغادرة]]) -> 3
A58: 1593 | B58: بركات خليل سعيد الصالحي بدحان ارشيد | C58: المستودعات | D58: 2017-07-02 | E58: 2021-03-25 | F58: 4 | G58: 3 | H58: 2 | I58: 2 | J58: 2 | K58: 2 | L58: 4 | M58: 2 | N58: 4 | O58: 5 | T58: الراتب والمميزات - Salary & Benefits | V58: =(Table3[[#This Row],[تاريخ المغادرة]]-Table3[[#This Row],[تاريخ المباشرة]])/365 -> 3.731506849 | W58: =MONTH(Table3[[#This Row],[تاريخ المغادرة]]) -> 3
A59: 6164 | B59: فرح منذر عبدالرحمن عفانه محسن | C59: المالية | D59: 2015-08-17 | E59: 2021-04-14 | F59: 1 | G59: 4 | H59: 2 | I59: 2 | J59: 2 | K59: 2 | L59: 2 | M59: 2 | N59: 2 | O59: 3 | T59: الحصول على فرصة أفضل Better Opportunity | V59: =(Table3[[#This Row],[تاريخ المغادرة]]-Table3[[#This Row],[تاريخ المباشرة]])/365 -> 5.663013699 | W59: =MONTH(Table3[[#This Row],[تاريخ المغادرة]]) -> 4
A60: 2467 | B60: يزيد محمد محمد ارشيد | C60: الخدمات اللوجستية | D60: 2011-04-30 | E60: 2021-04-05 | F60: 2 | G60: 5 | H60: 2 | I60: 2 | J60: 2 | K60: 2 | L60: 2 | M60: 3 | N60: 1 | O60: 5 | T60: الراتب والمميزات - Salary & Benefits | V60: =(Table3[[#This Row],[تاريخ المغادرة]]-Table3[[#This Row],[تاريخ المباشرة]])/365 -> 9.939726027 | W60: =MONTH(Table3[[#This Row],[تاريخ المغادرة]]) -> 4
A61: 9185 | B61: امجد وليد بدحان البكار | C61: المالية | D61: 2013-08-01 | E61: 2021-01-12 | F61: 4 | G61: 3 | H61: 1 | I61: 5 | J61: 4 | K61: 4 | L61: 2 | M61: 5 | N61: 4 | O61: 5 | T61: الراتب والمميزات - Salary & Benefits | V61: =(Table3[[#This Row],[تاريخ المغادرة]]-Table3[[#This Row],[تاريخ المباشرة]])/365 -> 7.454794521 | W61: =MONTH(Table3[[#This Row],[تاريخ المغادرة]]) -> 1
A62: 6885 | B62: محمد محسن محمد بشاره | C62: المبيعات | D62: 2012-01-30 | E62: 2021-01-21 | F62: 2 | G62: 1 | H62: 5 | I62: 3 | J62: 4 | K62: 1 | L62: 3 | M62: 3 | N62: 2 | O62: 4 | T62: مضايقة مديري أو زملائي Harassment of my manager or colleagues | V62: =(Table3[[#This Row],[تاريخ المغادرة]]-Table3[[#This Row],[تاريخ المباشرة]])/365 -> 8.983561644 | W62: =MONTH(Table3[[#This Row],[تاريخ المغادرة]]) -> 1
A63: 9913 | B63: يحيى ايمن محمود الشلختي | C63: المالية | D63: 2010-01-13 | E63: 2021-05-09 | F63: 5 | G63: 4 | H63: 2 | I63: 4 | J63: 1 | K63: 3 | L63: 1 | M63: 5 | N63: 5 | O63: 4 | T63: بيئة العمل غير محفزة Disengagement in work environment | V63: =(Table3[[#This Row],[تاريخ المغادرة]]-Table3[[#This Row],[تاريخ المباشرة]])/365 -> 11.3260274 | W63: =MONTH(Table3[[#This Row],[تاريخ المغادرة]]) -> 5
A64: 2927 | B64: لجين ناصر محمد النقرش | C64: العمليات | D64: 2010-09-01 | E64: 2021-01-10 | F64: 1 | G64: 2 | H64: 2 | I64: 5 | J64: 2 | K64: 2 | L64: 3 | M64: 1 | N64: 4 | O64: 3 | T64: ظروف عائلية Family issues | V64: =(Table3[[#This Row],[تاريخ المغادرة]]-Table3[[#This Row],[تاريخ المباشرة]])/365 -> 10.36712329 | W64: =MONTH(Table3[[#This Row],[تاريخ المغادرة]]) -> 1
A65: 8437 | B65: لينا هيثم حسن ابولاوى | C65: العمليات | D65: 2019-08-06 | E65: 2021-02-18 | F65: 4 | G65: 2 | H65: 2 | I65: 3 | J65: 4 | K65: 4 | L65: 1 | M65: 3 | N65: 4 | O65: 4 | T65: أخرى Other | V65: =(Table3[[#This Row],[تاريخ المغادرة]]-Table3[[#This Row],[تاريخ المباشرة]])/365 -> 1.539726027 | W65: =MONTH(Table3[[#This Row],[تاريخ المغادرة]]) -> 2
A66: 6624 | B66: مجد اسماعيل سبتي فارس | C66: المبيعات | D66: 2012-07-18 | E66: 2021-02-14 | F66: 3 | G66: 5 | H66: 4 | I66: 3 | J66: 3 | K66: 4 | L66: 2 | M66: 2 | N66: 2 | O66: 4 | T66: أخرى Other | V66: =(Table3[[#This Row],[تاريخ المغادرة]]-Table3[[#This Row],[تاريخ المباشرة]])/365 -> 8.583561644 | W66: =MONTH(Table3[[#This Row],[تاريخ المغادرة]]) -> 2
A67: 9142 | B67: يزيد خليل فارس | C67: العمليات | D67: 2013-05-30 | E67: 2021-02-01 | F67: 4 | G67: 3 | H67: 2 | I67: 4 | J67: 4 | K67: 2 | L67: 2 | M67: 3 | N67: 5 | O67: 4 | T67: الراتب والمميزات - Salary & Benefits | V67: =(Table3[[#This Row],[تاريخ المغادرة]]-Table3[[#This Row],[تاريخ المباشرة]])/365 -> 7.682191781 | W67: =MONTH(Table3[[#This Row],[تاريخ المغادرة]]) -> 2
A68: 9476 | B68: احمد فريد فارس مراد | C68: العمليات | D68: 2019-03-08 | E68: 2021-02-14 | F68: 2 | G68: 3 | H68: 2 | I68: 2 | J68: 4 | K68: 2 | L68: 3 | M68: 4 | N68: 2 | O68: 4 | T68: الحصول على فرصة أفضل Better Opportunity | V68: =(Table3[[#This Row],[تاريخ المغادرة]]-Table3[[#This Row],[تاريخ المباشرة]])/365 -> 1.942465753 | W68: =MONTH(Table3[[#This Row],[تاريخ المغادرة]]) -> 2
A69: 2335 | B69: محمد كامل منير العبيني | C69: العمليات | D69: 2011-04-10 | E69: 2021-01-16 | F69: 1 | G69: 2 | H69: 1 | I69: 5 | J69: 1 | K69: 4 | L69: 2 | M69: 2 | N69: 3 | O69: 3 | T69: الراتب والمميزات - Salary & Benefits | V69: =(Table3[[#This Row],[تاريخ المغادرة]]-Table3[[#This Row],[تاريخ المباشرة]])/365 -> 9.778082192 | W69: =MONTH(Table3[[#This Row],[تاريخ المغادرة]]) -> 1
A70: 5750 | B70: محمد وائل محمد الشبعان | C70: المبيعات | D70: 2012-12-13 | E70: 2021-02-20 | F70: 3 | G70: 3 | H70: 5 | I70: 3 | J70: 3 | K70: 1 | L70: 1 | M70: 4 | N70: 3 | O70: 5 | T70: تغيير مكان سكني Relocate to other place | V70: =(Table3[[#This Row],[تاريخ المغادرة]]-Table3[[#This Row],[تاريخ المباشرة]])/365 -> 8.194520548 | W70: =MONTH(Table3[[#This Row],[تاريخ المغادرة]]) -> 2
A71: 5173 | B71: أحمد احمد موسى السردية | C71: العمليات | D71: 2015-12-21 | E71: 2021-04-13 | F71: 3 | G71: 3 | H71: 2 | I71: 4 | J71: 2 | K71: 1 | L71: 1 | M71: 4 | N71: 1 | O71: 4 | T71: مضايقة مديري أو زملائي Harassment of my manager or colleagues | V71: =(Table3[[#This Row],[تاريخ المغادرة]]-Table3[[#This Row],[تاريخ المباشرة]])/365 -> 5.315068493 | W71: =MONTH(Table3[[#This Row],[تاريخ المغادرة]]) -> 4
A72: 5642 | B72: محمد انيازي علي سعيد | C72: الخدمات اللوجستية | D72: 2011-02-06 | E72: 2021-01-09 | F72: 5 | G72: 5 | H72: 2 | I72: 2 | J72: 2 | K72: 2 | L72: 2 | M72: 2 | N72: 1 | O72: 4 | T72: بيئة العمل غير محفزة Disengagement in work environment | V72: =(Table3[[#This Row],[تاريخ المغادرة]]-Table3[[#This Row],[تاريخ المباشرة]])/365 -> 9.931506849 | W72: =MONTH(Table3[[#This Row],[تاريخ المغادرة]]) -> 1
A73: 6996 | B73: سراه ثاني علي المساعيد | C73: العمليات | D73: 2013-08-29 | E73: 2021-03-10 | F73: 1 | G73: 1 | H73: 1 | I73: 2 | J73: 2 | K73: 2 | L73: 2 | M73: 2 | N73: 4 | O73: 5 | T73: ظروف عائلية Family issues | V73: =(Table3[[#This Row],[تاريخ المغادرة]]-Table3[[#This Row],[تاريخ المباشرة]])/365 -> 7.534246575 | W73: =MONTH(Table3[[#This Row],[تاريخ المغادرة]]) -> 3
A74: 9035 | B74: وفاء عزمي رفة عيسى | C74: المستودعات | D74: 2010-06-07 | E74: 2021-02-09 | F74: 1 | G74: 1 | H74: 3 | I74: 2 | J74: 2 | K74: 2 | L74: 2 | M74: 2 | N74: 4 | O74: 3 | T74: الراتب والمميزات - Salary & Benefits | V74: =(Table3[[#This Row],[تاريخ المغادرة]]-Table3[[#This Row],[تاريخ المباشرة]])/365 -> 10.68493151 | W74: =MONTH(Table3[[#This Row],[تاريخ المغادرة]]) -> 2
A75: 5536 | B75: شهد هاشم عثمان القضاه الحوراني | C75: العمليات | D75: 2010-10-02 | E75: 2021-01-26 | F75: 3 | G75: 3 | H75: 2 | I75: 2 | J75: 2 | K75: 2 | L75: 2 | M75: 2 | N75: 4 | O75: 4 | T75: الحصول على فرصة أفضل Better Opportunity | V75: =(Table3[[#This Row],[تاريخ المغادرة]]-Table3[[#This Row],[تاريخ المباشرة]])/365 -> 10.3260274 | W75: =MONTH(Table3[[#This Row],[تاريخ المغادرة]]) -> 1
A76: 3766 | B76: شهد عبدالكريم علي سامي | C76: المبيعات | D76: 2011-07-03 | E76: 2021-03-02 | F76: 1 | G76: 3 | H76: 3 | I76: 2 | J76: 2 | K76: 2 | L76: 2 | M76: 2 | N76: 5 | O76: 4 | T76: الراتب والمميزات - Salary & Benefits | V76: =(Table3[[#This Row],[تاريخ المغادرة]]-Table3[[#This Row],[تاريخ المباشرة]])/365 -> 9.671232877 | W76: =MONTH(Table3[[#This Row],[تاريخ المغادرة]]) -> 3
A77: 4906 | B77: ملك عاطف الدين ساقي | C77: المستودعات | D77: 2011-08-08 | E77: 2021-03-28 | F77: 4 | G77: 2 | H77: 3 | I77: 2 | J77: 2 | K77: 2 | L77: 2 | M77: 2 | N77: 5 | O77: 4 | T77: الراتب والمميزات - Salary & Benefits | V77: =(Table3[[#This Row],[تاريخ المغادرة]]-Table3[[#This Row],[تاريخ المباشرة]])/365 -> 9.643835616 | W77: =MONTH(Table3[[#This Row],[تاريخ المغادرة]]) -> 3
A78: 7275 | B78: تسنيم شرف محمد دياب | C78: العمليات | D78: 2019-04-03 | E78: 2021-02-19 | F78: 1 | G78: 2 | H78: 2 | I78: 3 | J78: 4 | K78: 1 | L78: 1 | M78: 5 | N78: 3 | O78: 3 | T78: مضايقة مديري أو زملائي Harassment of my manager or colleagues | V78: =(Table3[[#This Row],[تاريخ المغادرة]]-Table3[[#This Row],[تاريخ المباشرة]])/365 -> 1.884931507 | W78: =MONTH(Table3[[#This Row],[تاريخ المغادرة]]) -> 2
A79: 3004 | B79: افنان ليث خير | C79: العمليات | D79: 2016-12-09 | E79: 2021-04-27 | F79: 3 | G79: 1 | H79: 3 | I79: 2 | J79: 5 | K79: 3 | L79: 1 | M79: 5 | N79: 2 | O79: 5 | T79: بيئة العمل غير محفزة Disengagement in work environment | V79: =(Table3[[#This Row],[تاريخ المغادرة]]-Table3[[#This Row],[تاريخ المباشرة]])/365 -> 4.383561644 | W79: =MONTH(Table3[[#This Row],[تاريخ المغادرة]]) -> 4
A80: 7284 | B80: اوراد محمد المحمود العبيني عناقره | C80: المستودعات | D80: 2017-07-17 | E80: 2021-02-23 | F80: 1 | G80: 1 | H80: 4 | I80: 3 | J80: 1 | K80: 2 | L80: 3 | M80: 4 | N80: 2 | O80: 4 | T80: ظروف عائلية Family issues | V80: =(Table3[[#This Row],[تاريخ المغادرة]]-Table3[[#This Row],[تاريخ المباشرة]])/365 -> 3.608219178 | W80: =MONTH(Table3[[#This Row],[تاريخ المغادرة]]) -> 2
A81: 1317 | B81: لمى عماد محمد حسن جابر | C81: العمليات | D81: 2012-10-18 | E81: 2021-04-25 | F81: 2 | G81: 3 | H81: 2 | I81: 4 | J81: 4 | K81: 5 | L81: 2 | M81: 1 | N81: 3 | O81: 4 | T81: أخرى Other | V81: =(Table3[[#This Row],[تاريخ المغادرة]]-Table3[[#This Row],[تاريخ المباشرة]])/365 -> 8.523287671 | W81: =MONTH(Table3[[#This Row],[تاريخ المغادرة]]) -> 4
A82: 5063 | B82: روان معتصم الدين خالد | C82: العمليات | D82: 2019-06-08 | E82: 2021-01-08 | F82: 1 | G82: 4 | H82: 3 | I82: 3 | J82: 2 | K82: 5 | L82: 3 | M82: 1 | N82: 1 | O82: 5 | T82: أخرى Other | V82: =(Table3[[#This Row],[تاريخ المغادرة]]-Table3[[#This Row],[تاريخ المباشرة]])/365 -> 1.589041096 | W82: =MONTH(Table3[[#This Row],[تاريخ المغادرة]]) -> 1
A83: 5439 | B83: مهند صلاح محمد الخطيب | C83: المبيعات | D83: 2017-11-06 | E83: 2021-01-16 | F83: 3 | G83: 1 | H83: 4 | I83: 2 | J83: 2 | K83: 2 | L83: 1 | M83: 3 | N83: 5 | O83: 4 | T83: الراتب والمميزات - Salary & Benefits | V83: =(Table3[[#This Row],[تاريخ المغادرة]]-Table3[[#This Row],[تاريخ المباشرة]])/365 -> 3.197260274 | W83: =MONTH(Table3[[#This Row],[تاريخ المغادرة]]) -> 1
A84: 1964 | B84: يزن عدنان ياسين النمر | C84: العمليات | D84: 2012-12-06 | E84: 2021-02-04 | F84: 5 | G84: 1 | H84: 3 | I84: 5 | J84: 5 | K84: 5 | L84: 3 | M84: 1 | N84: 1 | O84: 4 | T84: الحصول على فرصة أفضل Better Opportunity | V84: =(Table3[[#This Row],[تاريخ المغادرة]]-Table3[[#This Row],[تاريخ المباشرة]])/365 -> 8.169863014 | W84: =MONTH(Table3[[#This Row],[تاريخ المغادرة]]) -> 2
A85: 9959 | B85: طلال محمد أدهم عمر | C85: المستودعات | D85: 2020-07-18 | E85: 2021-02-19 | F85: 5 | G85: 1 | H85: 2 | I85: 3 | J85: 5 | K85: 1 | L85: 3 | M85: 1 | N85: 2 | O85: 4 | T85: الإنتقال إلى جهة حكومية Joining Gov. | V85: =(Table3[[#This Row],[تاريخ المغادرة]]-Table3[[#This Row],[تاريخ المباشرة]])/365 -> 0.5917808219 | W85: =MONTH(Table3[[#This Row],[تاريخ المغادرة]]) -> 2
A86: 6779 | B86: اسامه فارس محمد جوبي | C86: العمليات | D86: 2013-06-27 | E86: 2021-01-06 | F86: 2 | G86: 5 | H86: 3 | I86: 3 | J86: 2 | K86: 2 | L86: 5 | M86: 2 | N86: 2 | O86: 4 | T86: تغيير مكان سكني Relocate to other place | V86: =(Table3[[#This Row],[تاريخ المغادرة]]-Table3[[#This Row],[تاريخ المباشرة]])/365 -> 7.534246575 | W86: =MONTH(Table3[[#This Row],[تاريخ المغادرة]]) -> 1
A87: 9351 | B87: أدهم عوض نصر طشطوش | C87: العمليات | D87: 2013-02-02 | E87: 2021-03-28 | F87: 2 | G87: 2 | H87: 2 | I87: 2 | J87: 2 | K87: 2 | L87: 5 | M87: 2 | N87: 2 | O87: 5 | T87: مضايقة مديري أو زملائي Harassment of my manager or colleagues | V87: =(Table3[[#This Row],[تاريخ المغادرة]]-Table3[[#This Row],[تاريخ المباشرة]])/365 -> 8.153424658 | W87: =MONTH(Table3[[#This Row],[تاريخ المغادرة]]) -> 3
A88: 5038 | B88: محمد الدين موسى العيشاوى | C88: العمليات | D88: 2013-09-21 | E88: 2021-04-09 | F88: 5 | G88: 5 | H88: 1 | I88: 5 | J88: 2 | K88: 2 | L88: 5 | M88: 2 | N88: 2 | O88: 5 | T88: بيئة العمل غير محفزة Disengagement in work environment | V88: =(Table3[[#This Row],[تاريخ المغادرة]]-Table3[[#This Row],[تاريخ المباشرة]])/365 -> 7.553424658 | W88: =MONTH(Table3[[#This Row],[تاريخ المغادرة]]) -> 4
A89: 9512 | B89: مجد غسان محمود الحمدان | C89: العمليات | D89: 2020-09-06 | E89: 2021-04-04 | F89: 5 | G89: 5 | H89: 1 | I89: 5 | J89: 2 | K89: 2 | L89: 5 | M89: 2 | N89: 2 | O89: 4 | T89: ظروف عائلية Family issues | V89: =(Table3[[#This Row],[تاريخ المغادرة]]-Table3[[#This Row],[تاريخ المباشرة]])/365 -> 0.5753424658 | W89: =MONTH(Table3[[#This Row],[تاريخ المغادرة]]) -> 4
A90: 2713 | B90: عمرو جمال محمد الشرمان | C90: المستودعات | D90: 2010-07-29 | E90: 2021-04-01 | F90: 2 | G90: 3 | H90: 5 | I90: 4 | J90: 2 | K90: 2 | L90: 5 | M90: 2 | N90: 2 | O90: 4 | T90: ظروف عائلية Family issues | V90: =(Table3[[#This Row],[تاريخ المغادرة]]-Table3[[#This Row],[تاريخ المباشرة]])/365 -> 10.68219178 | W90: =MONTH(Table3[[#This Row],[تاريخ المغادرة]]) -> 4
A91: 6113 | B91: عبدالوهاب فراس محمد الحوثي | C91: العمليات | D91: 2018-03-17 | E91: 2021-04-24 | F91: 2 | G91: 5 | H91: 5 | I91: 2 | J91: 2 | K91: 2 | L91: 2 | M91: 2 | N91: 2 | O91: 4 | T91: أخرى Other | V91: =(Table3[[#This Row],[تاريخ المغادرة]]-Table3[[#This Row],[تاريخ المباشرة]])/365 -> 3.106849315 | W91: =MONTH(Table3[[#This Row],[تاريخ المغادرة]]) -> 4
A92: 1437 | B92: مجد علي عبدالله أبوغالي عيد | C92: العمليات | D92: 2018-04-13 | E92: 2021-04-18 | F92: 2 | G92: 3 | H92: 5 | I92: 1 | J92: 4 | K92: 4 | L92: 2 | M92: 5 | N92: 3 | O92: 5 | T92: الراتب والمميزات - Salary & Benefits | V92: =(Table3[[#This Row],[تاريخ المغادرة]]-Table3[[#This Row],[تاريخ المباشرة]])/365 -> 3.016438356 | W92: =MONTH(Table3[[#This Row],[تاريخ المغادرة]]) -> 4
A93: 8327 | B93: وفاء عبدالله عبدالقادر ابو | C93: العمليات | D93: 2011-12-07 | E93: 2021-01-06 | F93: 5 | G93: 2 | H93: 4 | I93: 2 | J93: 3 | K93: 5 | L93: 2 | M93: 5 | N93: 4 | O93: 4 | T93: الحصول على فرصة أفضل Better Opportunity | V93: =(Table3[[#This Row],[تاريخ المغادرة]]-Table3[[#This Row],[تاريخ المباشرة]])/365 -> 9.090410959 | W93: =MONTH(Table3[[#This Row],[تاريخ المغادرة]]) -> 1
A94: 6787 | B94: محمد جمال حسن الجراح الكريم حسين | C94: العمليات | D94: 2019-08-13 | E94: 2021-03-19 | F94: 1 | G94: 1 | H94: 1 | I94: 4 | J94: 3 | K94: 4 | L94: 2 | M94: 2 | N94: 1 | O94: 4 | T94: الإنتقال إلى جهة حكومية Joining Gov. | V94: =(Table3[[#This Row],[تاريخ المغادرة]]-Table3[[#This Row],[تاريخ المباشرة]])/365 -> 1.6 | W94: =MONTH(Table3[[#This Row],[تاريخ المغادرة]]) -> 3
A95: 4480 | B95: محمد حكم محمود عبد حاج | C95: العمليات | D95: 2019-04-12 | E95: 2021-04-08 | F95: 3 | G95: 2 | H95: 1 | I95: 2 | J95: 2 | K95: 5 | L95: 2 | M95: 5 | N95: 4 | O95: 3 | T95: الراتب والمميزات - Salary & Benefits | V95: =(Table3[[#This Row],[تاريخ المغادرة]]-Table3[[#This Row],[تاريخ المباشرة]])/365 -> 1.991780822 | W95: =MONTH(Table3[[#This Row],[تاريخ المغادرة]]) -> 4
A96: 2997 | B96: محمد عمر محمود ياسين | C96: المستودعات | D96: 2016-05-12 | E96: 2021-03-05 | F96: 4 | G96: 2 | H96: 2 | I96: 1 | J96: 3 | K96: 5 | L96: 3 | M96: 2 | N96: 3 | O96: 4 | T96: مضايقة مديري أو زملائي Harassment of my manager or colleagues | V96: =(Table3[[#This Row],[تاريخ المغادرة]]-Table3[[#This Row],[تاريخ المباشرة]])/365 -> 4.816438356 | W96: =MONTH(Table3[[#This Row],[تاريخ المغادرة]]) -> 3
A97: 2050 | B97: معاذ مازن الرحمن خميس | C97: العمليات | D97: 2010-02-22 | E97: 2021-03-17 | F97: 4 | G97: 2 | H97: 4 | I97: 4 | J97: 1 | K97: 4 | L97: 2 | M97: 2 | N97: 4 | O97: 3 | T97: الراتب والمميزات - Salary & Benefits | V97: =(Table3[[#This Row],[تاريخ المغادرة]]-Table3[[#This Row],[تاريخ المباشرة]])/365 -> 11.07123288 | W97: =MONTH(Table3[[#This Row],[تاريخ المغادرة]]) -> 3
A98: 5987 | B98: علي عبد اسماعيل المعنقر | C98: المبيعات | D98: 2011-11-11 | E98: 2021-01-09 | F98: 2 | G98: 4 | H98: 3 | I98: 5 | J98: 5 | K98: 5 | L98: 2 | M98: 4 | N98: 4 | O98: 5 | T98: ظروف عائلية Family issues | V98: =(Table3[[#This Row],[تاريخ المغادرة]]-Table3[[#This Row],[تاريخ المباشرة]])/365 -> 9.169863014 | W98: =MONTH(Table3[[#This Row],[تاريخ المغادرة]]) -> 1
A99: 1039 | B99: احمد رضوان خليف محسن | C99: العمليات | D99: 2013-02-12 | E99: 2021-04-08 | F99: 3 | G99: 4 | H99: 2 | I99: 2 | J99: 5 | K99: 2 | L99: 2 | M99: 1 | N99: 4 | O99: 5 | T99: أخرى Other | V99: =(Table3[[#This Row],[تاريخ المغادرة]]-Table3[[#This Row],[تاريخ المباشرة]])/365 -> 8.156164384 | W99: =MONTH(Table3[[#This Row],[تاريخ المغادرة]]) -> 4
A100: 9564 | B100: مرح حسن منذر الجاموس | C100: المبيعات | D100: 2015-11-17 | E100: 2021-04-15 | F100: 2 | G100: 1 | H100: 4 | I100: 3 | J100: 1 | K100: 3 | L100: 2 | M100: 1 | N100: 1 | O100: 3 | T100: الراتب والمميزات - Salary & Benefits | V100: =(Table3[[#This Row],[تاريخ المغادرة]]-Table3[[#This Row],[تاريخ المباشرة]])/365 -> 5.41369863 | W100: =MONTH(Table3[[#This Row],[تاريخ المغادرة]]) -> 4
A101: 5041 | B101: محمد المجيد جبر الحلواني | C101: العمليات | D101: 2020-02-21 | E101: 2021-02-13 | F101: 1 | G101: 1 | H101: 2 | I101: 4 | J101: 2 | K101: 1 | L101: 2 | M101: 4 | N101: 1 | O101: 2 | T101: الحصول على فرصة أفضل Better Opportunity | V101: =(Table3[[#This Row],[تاريخ المغادرة]]-Table3[[#This Row],[تاريخ المباشرة]])/365 -> 0.9808219178 | W101: =MONTH(Table3[[#This Row],[تاريخ المغادرة]]) -> 2
A102: 3826 | B102: عبد محمد عبدالباقي زغير | C102: العمليات | D102: 2014-12-07 | E102: 2021-05-07 | F102: 5 | G102: 3 | H102: 5 | I102: 3 | J102: 1 | K102: 5 | L102: 2 | M102: 3 | N102: 1 | O102: 4 | T102: الإنتقال إلى جهة حكومية Joining Gov. | V102: =(Table3[[#This Row],[تاريخ المغادرة]]-Table3[[#This Row],[تاريخ المباشرة]])/365 -> 6.419178082 | W102: =MONTH(Table3[[#This Row],[تاريخ المغادرة]]) -> 5
A103: 8316 | B103: عبدالله محمدغزوان زغير | C103: العمليات | D103: 2019-08-21 | E103: 2021-01-30 | F103: 1 | G103: 1 | H103: 3 | I103: 5 | J103: 1 | K103: 2 | L103: 3 | M103: 3 | N103: 1 | O103: 4 | T103: تغيير مكان سكني Relocate to other place | V103: =(Table3[[#This Row],[تاريخ المغادرة]]-Table3[[#This Row],[تاريخ المباشرة]])/365 -> 1.446575342 | W103: =MONTH(Table3[[#This Row],[تاريخ المغادرة]]) -> 1
A104: 9398 | B104: مازن كريم عجم الدرايسه | C104: العمليات | D104: 2015-03-05 | E104: 2021-02-25 | F104: 3 | G104: 5 | H104: 2 | I104: 5 | J104: 4 | K104: 2 | L104: 2 | M104: 5 | N104: 1 | O104: 5 | T104: الراتب والمميزات - Salary & Benefits | V104: =(Table3[[#This Row],[تاريخ المغادرة]]-Table3[[#This Row],[تاريخ المباشرة]])/365 -> 5.983561644 | W104: =MONTH(Table3[[#This Row],[تاريخ المغادرة]]) -> 2
A105: 5642 | B105: صبا خالد علي النمرى | C105: المستودعات | D105: 2012-09-23 | E105: 2021-01-18 | F105: 5 | G105: 4 | H105: 5 | I105: 2 | J105: 4 | K105: 3 | L105: 2 | M105: 3 | N105: 2 | O105: 3 | T105: الراتب والمميزات - Salary & Benefits | V105: =(Table3[[#This Row],[تاريخ المغادرة]]-Table3[[#This Row],[تاريخ المباشرة]])/365 -> 8.326027397 | W105: =MONTH(Table3[[#This Row],[تاريخ المغادرة]]) -> 1
A106: 8511 | B106: طارق محمد عادل الحسنات | C106: الخدمات اللوجستية | D106: 2013-04-14 | E106: 2021-05-06 | F106: 3 | G106: 4 | H106: 2 | I106: 1 | J106: 5 | K106: 5 | L106: 2 | M106: 3 | N106: 1 | O106: 2 | T106: ظروف عائلية Family issues | V106: =(Table3[[#This Row],[تاريخ المغادرة]]-Table3[[#This Row],[تاريخ المباشرة]])/365 -> 8.065753425 | W106: =MONTH(Table3[[#This Row],[تاريخ المغادرة]]) -> 5
A107: 2558 | B107: مراد زياد عبدالوهاب سعاده الحوامده | C107: العمليات | D107: 2020-03-09 | E107: 2021-01-07 | F107: 1 | G107: 4 | H107: 4 | I107: 3 | J107: 4 | K107: 3 | L107: 2 | M107: 5 | N107: 1 | O107: 1 | T107: أخرى Other | V107: =(Table3[[#This Row],[تاريخ المغادرة]]-Table3[[#This Row],[تاريخ المباشرة]])/365 -> 0.8328767123 | W107: =MONTH(Table3[[#This Row],[تاريخ المغادرة]]) -> 1
A108: 4472 | B108: لينا يحيى مصطفى الفتاح | C108: العمليات | D108: 2010-08-04 | E108: 2021-03-31 | F108: 5 | G108: 4 | H108: 2 | I108: 2 | J108: 2 | K108: 2 | L108: 2 | M108: 2 | N108: 4 | O108: 4 | T108: الراتب والمميزات - Salary & Benefits | V108: =(Table3[[#This Row],[تاريخ المغادرة]]-Table3[[#This Row],[تاريخ المباشرة]])/365 -> 10.6630137 | W108: =MONTH(Table3[[#This Row],[تاريخ المغادرة]]) -> 3
A109: 8554 | B109: زكريا سالم عبد عربيات | C109: العمليات | D109: 2016-11-05 | E109: 2021-02-05 | F109: 3 | G109: 3 | H109: 5 | I109: 2 | J109: 2 | K109: 2 | L109: 2 | M109: 2 | N109: 3 | O109: 5 | T109: الحصول على فرصة أفضل Better Opportunity | V109: =(Table3[[#This Row],[تاريخ المغادرة]]-Table3[[#This Row],[تاريخ المباشرة]])/365 -> 4.254794521 | W109: =MONTH(Table3[[#This Row],[تاريخ المغادرة]]) -> 2
A110: 4159 | B110: باسل محمود محمود ملكاوي أبوقديس | C110: المبيعات | D110: 2013-04-25 | E110: 2021-02-19 | F110: 3 | G110: 1 | H110: 5 | I110: 2 | J110: 2 | K110: 2 | L110: 2 | M110: 2 | N110: 5 | O110: 1 | T110: الإنتقال إلى جهة حكومية Joining Gov. | V110: =(Table3[[#This Row],[تاريخ المغادرة]]-Table3[[#This Row],[تاريخ المباشرة]])/365 -> 7.82739726 | W110: =MONTH(Table3[[#This Row],[تاريخ المغادرة]]) -> 2
A111: 8422 | B111: دانيه يونس علي احمد | C111: العمليات | D111: 2011-11-01 | E111: 2021-02-01 | F111: 4 | G111: 4 | H111: 4 | I111: 2 | J111: 2 | K111: 2 | L111: 2 | M111: 2 | N111: 3 | O111: 2 | T111: الراتب والمميزات - Salary & Benefits | V111: =(Table3[[#This Row],[تاريخ المغادرة]]-Table3[[#This Row],[تاريخ المباشرة]])/365 -> 9.260273973 | W111: =MONTH(Table3[[#This Row],[تاريخ المغادرة]]) -> 2
A112: 3308 | B112: محمود حسين خير شناق | C112: العمليات | D112: 2019-09-06 | E112: 2021-01-09 | F112: 2 | G112: 5 | H112: 5 | I112: 2 | J112: 2 | K112: 2 | L112: 2 | M112: 2 | N112: 3 | O112: 4 | T112: الراتب والمميزات - Salary & Benefits | V112: =(Table3[[#This Row],[تاريخ المغادرة]]-Table3[[#This Row],[تاريخ المباشرة]])/365 -> 1.345205479 | W112: =MONTH(Table3[[#This Row],[تاريخ المغادرة]]) -> 1
A113: 7630 | B113: صفوان محمد محمد الشواقفه | C113: العمليات | D113: 2011-07-05 | E113: 2021-02-11 | F113: 3 | G113: 4 | H113: 2 | I113: 2 | J113: 2 | K113: 2 | L113: 2 | M113: 2 | N113: 2 | O113: 1 | T113: بيئة العمل غير محفزة Disengagement in work environment | V113: =(Table3[[#This Row],[تاريخ المغادرة]]-Table3[[#This Row],[تاريخ المباشرة]])/365 -> 9.61369863 | W113: =MONTH(Table3[[#This Row],[تاريخ المغادرة]]) -> 2
A114: 4087 | B114: احمد جمال محمود الدويرى | C114: المستودعات | D114: 2016-01-01 | E114: 2021-03-29 | F114: 3 | G114: 5 | H114: 2 | I114: 1 | J114: 5 | K114: 3 | L114: 2 | M114: 5 | N114: 2 | O114: 2 | T114: ظروف عائلية Family issues | V114: =(Table3[[#This Row],[تاريخ المغادرة]]-Table3[[#This Row],[تاريخ المباشرة]])/365 -> 5.243835616 | W114: =MONTH(Table3[[#This Row],[تاريخ المغادرة]]) -> 3
A115: 5199 | B115: احمد زهير خلف درادكه | C115: العمليات | D115: 2010-04-24 | E115: 2021-04-18 | F115: 2 | G115: 1 | H115: 5 | I115: 3 | J115: 5 | K115: 4 | L115: 2 | M115: 1 | N115: 5 | O115: 1 | T115: أخرى Other | V115: =(Table3[[#This Row],[تاريخ المغادرة]]-Table3[[#This Row],[تاريخ المباشرة]])/365 -> 10.99178082 | W115: =MONTH(Table3[[#This Row],[تاريخ المغادرة]]) -> 4
A116: 1068 | B116: رنيم علي محمود علوه | C116: المبيعات | D116: 2013-10-24 | E116: 2021-01-06 | F116: 2 | G116: 3 | H116: 2 | I116: 2 | J116: 2 | K116: 2 | L116: 2 | M116: 1 | N116: 4 | O116: 4 | T116: أخرى Other | V116: =(Table3[[#This Row],[تاريخ المغادرة]]-Table3[[#This Row],[تاريخ المباشرة]])/365 -> 7.208219178 | W116: =MONTH(Table3[[#This Row],[تاريخ المغادرة]]) -> 1
A117: 6401 | B117: بيان وجيه محمد الناطور عطا | C117: المبيعات | D117: 2018-06-13 | E117: 2021-04-16 | F117: 2 | G117: 3 | H117: 4 | I117: 2 | J117: 5 | K117: 1 | L117: 3 | M117: 1 | N117: 1 | O117: 4 | T117: الراتب والمميزات - Salary & Benefits | V117: =(Table3[[#This Row],[تاريخ المغادرة]]-Table3[[#This Row],[تاريخ المباشرة]])/365 -> 2.843835616 | W117: =MONTH(Table3[[#This Row],[تاريخ المغادرة]]) -> 4
A118: 8560 | B118: غيداء هشام رضوان بني | C118: العمليات | D118: 2017-01-07 | E118: 2021-04-16 | F118: 4 | G118: 2 | H118: 4 | I118: 1 | J118: 4 | K118: 3 | L118: 2 | M118: 4 | N118: 3 | O118: 2 | T118: الراتب والمميزات - Salary & Benefits | V118: =(Table3[[#This Row],[تاريخ المغادرة]]-Table3[[#This Row],[تاريخ المباشرة]])/365 -> 4.273972603 | W118: =MONTH(Table3[[#This Row],[تاريخ المغادرة]]) -> 4
A119: 8725 | B119: ساره منصور محمد العدمات | C119: العمليات | D119: 2014-04-27 | E119: 2021-04-10 | F119: 3 | G119: 1 | H119: 4 | I119: 3 | J119: 5 | K119: 5 | L119: 1 | M119: 1 | N119: 5 | O119: 1 | T119: الإنتقال إلى جهة حكومية Joining Gov. | V119: =(Table3[[#This Row],[تاريخ المغادرة]]-Table3[[#This Row],[تاريخ المباشرة]])/365 -> 6.95890411 | W119: =MONTH(Table3[[#This Row],[تاريخ المغادرة]]) -> 4
A120: 8328 | B120: روان يوسف حسين عبابنه | C120: العمليات | D120: 2013-02-02 | E120: 2021-02-17 | F120: 1 | G120: 1 | H120: 1 | I120: 2 | J120: 3 | K120: 4 | L120: 3 | M120: 1 | N120: 5 | O120: 2 | T120: تغيير مكان سكني Relocate to other place | V120: =(Table3[[#This Row],[تاريخ المغادرة]]-Table3[[#This Row],[تاريخ المباشرة]])/365 -> 8.046575342 | W120: =MONTH(Table3[[#This Row],[تاريخ المغادرة]]) -> 2
A121: 9921 | B121: جنان عبدالرحيم حسين جراح | C121: العمليات | D121: 2011-06-03 | E121: 2021-02-22 | F121: 3 | G121: 3 | H121: 4 | I121: 5 | J121: 4 | K121: 1 | L121: 2 | M121: 3 | N121: 5 | O121: 4 | T121: مضايقة مديري أو زملائي Harassment of my manager or colleagues | V121: =(Table3[[#This Row],[تاريخ المغادرة]]-Table3[[#This Row],[تاريخ المباشرة]])/365 -> 9.731506849 | W121: =MONTH(Table3[[#This Row],[تاريخ المغادرة]]) -> 2
A122: 6797 | B122: نمير محمد مفلح الهدار | C122: العمليات | D122: 2020-02-12 | E122: 2021-02-11 | F122: 1 | G122: 3 | H122: 4 | I122: 1 | J122: 3 | K122: 3 | L122: 2 | M122: 3 | N122: 1 | O122: 1 | T122: بيئة العمل غير محفزة Disengagement in work environment | V122: =(Table3[[#This Row],[تاريخ المغادرة]]-Table3[[#This Row],[تاريخ المباشرة]])/365 -> 1 | W122: =MONTH(Table3[[#This Row],[تاريخ المغادرة]]) -> 2
A123: 7918 | B123: عبدالرحمن محمد علي ربيع المسدي | C123: المستودعات | D123: 2017-11-27 | E123: 2021-04-05 | F123: 2 | G123: 5 | H123: 1 | I123: 4 | J123: 2 | K123: 4 | L123: 1 | M123: 5 | N123: 3 | O123: 3 | T123: ظروف عائلية Family issues | V123: =(Table3[[#This Row],[تاريخ المغادرة]]-Table3[[#This Row],[تاريخ المباشرة]])/365 -> 3.356164384 | W123: =MONTH(Table3[[#This Row],[تاريخ المغادرة]]) -> 4
A124: 2284 | B124: عبدالله حميد الحاج وصفي | C124: العمليات | D124: 2011-07-07 | E124: 2021-01-29 | F124: 1 | G124: 1 | H124: 1 | I124: 2 | J124: 5 | K124: 1 | L124: 2 | M124: 1 | N124: 3 | O124: 2 | T124: أخرى Other | V124: =(Table3[[#This Row],[تاريخ المغادرة]]-Table3[[#This Row],[تاريخ المباشرة]])/365 -> 9.57260274 | W124: =MONTH(Table3[[#This Row],[تاريخ المغادرة]]) -> 1
A125: 3516 | B125: نور مصطفى الخير الرفاعي العجلوني | C125: المستودعات | D125: 2018-01-23 | E125: 2021-05-01 | F125: 5 | G125: 2 | H125: 2 | I125: 2 | J125: 2 | K125: 2 | L125: 2 | M125: 4 | N125: 1 | O125: 1 | T125: الراتب والمميزات - Salary & Benefits | V125: =(Table3[[#This Row],[تاريخ المغادرة]]-Table3[[#This Row],[تاريخ المباشرة]])/365 -> 3.271232877 | W125: =MONTH(Table3[[#This Row],[تاريخ المغادرة]]) -> 5
A126: 2804 | B126: نور احمد عبداللطيف سعيد | C126: العمليات | D126: 2018-03-04 | E126: 2021-03-31 | F126: 1 | G126: 2 | H126: 2 | I126: 2 | J126: 2 | K126: 1 | L126: 2 | M126: 4 | N126: 1 | O126: 1 | T126: الراتب والمميزات - Salary & Benefits | V126: =(Table3[[#This Row],[تاريخ المغادرة]]-Table3[[#This Row],[تاريخ المباشرة]])/365 -> 3.076712329 | W126: =MONTH(Table3[[#This Row],[تاريخ المغادرة]]) -> 3
A127: 1216 | B127: وصفي وجيه محمد الردايده | C127: العمليات | D127: 2016-03-25 | E127: 2021-04-14 | F127: 1 | G127: 2 | H127: 2 | I127: 2 | J127: 2 | K127: 2 | L127: 2 | M127: 3 | N127: 3 | O127: 5 | T127: الإنتقال إلى جهة حكومية Joining Gov. | V127: =(Table3[[#This Row],[تاريخ المغادرة]]-Table3[[#This Row],[تاريخ المباشرة]])/365 -> 5.057534247 | W127: =MONTH(Table3[[#This Row],[تاريخ المغادرة]]) -> 4
A128: 2651 | B128: أحمد عبدالسلام احمد القواقنه | C128: العمليات | D128: 2012-11-25 | E128: 2021-05-04 | F128: 4 | G128: 2 | H128: 2 | I128: 2 | J128: 2 | K128: 5 | L128: 2 | M128: 3 | N128: 4 | O128: 1 | T128: الراتب والمميزات - Salary & Benefits | V128: =(Table3[[#This Row],[تاريخ المغادرة]]-Table3[[#This Row],[تاريخ المباشرة]])/365 -> 8.443835616 | W128: =MONTH(Table3[[#This Row],[تاريخ المغادرة]]) -> 5
A129: 9385 | B129: بتول وليد محمد الزعبي | C129: العمليات | D129: 2020-09-03 | E129: 2021-04-19 | F129: 2 | G129: 2 | H129: 2 | I129: 2 | J129: 2 | K129: 5 | L129: 1 | M129: 5 | N129: 4 | O129: 5 | T129: مضايقة مديري أو زملائي Harassment of my manager or colleagues | V129: =(Table3[[#This Row],[تاريخ المغادرة]]-Table3[[#This Row],[تاريخ المباشرة]])/365 -> 0.6246575342 | W129: =MONTH(Table3[[#This Row],[تاريخ المغادرة]]) -> 4
A130: 5212 | B130: محمد اسامه يونس عمر | C130: العمليات | D130: 2015-06-29 | E130: 2021-03-19 | F130: 5 | G130: 5 | H130: 5 | I130: 3 | J130: 1 | K130: 1 | L130: 2 | M130: 4 | N130: 1 | O130: 1 | T130: بيئة العمل غير محفزة Disengagement in work environment | V130: =(Table3[[#This Row],[تاريخ المغادرة]]-Table3[[#This Row],[تاريخ المباشرة]])/365 -> 5.726027397 | W130: =MONTH(Table3[[#This Row],[تاريخ المغادرة]]) -> 3
A131: 4333 | B131: ايثار خالد عمر القاعود | C131: المستودعات | D131: 2011-02-05 | E131: 2021-02-15 | F131: 5 | G131: 1 | H131: 2 | I131: 1 | J131: 3 | K131: 3 | L131: 1 | M131: 1 | N131: 2 | O131: 5 | T131: ظروف عائلية Family issues | V131: =(Table3[[#This Row],[تاريخ المغادرة]]-Table3[[#This Row],[تاريخ المباشرة]])/365 -> 10.03561644 | W131: =MONTH(Table3[[#This Row],[تاريخ المغادرة]]) -> 2
A132: 6582 | B132: محمد حسني محمود علاونه | C132: المستودعات | D132: 2013-06-06 | E132: 2021-05-01 | F132: 1 | G132: 2 | H132: 2 | I132: 3 | J132: 2 | K132: 1 | L132: 2 | M132: 3 | N132: 5 | O132: 4 | T132: أخرى Other | V132: =(Table3[[#This Row],[تاريخ المغادرة]]-Table3[[#This Row],[تاريخ المباشرة]])/365 -> 7.906849315 | W132: =MONTH(Table3[[#This Row],[تاريخ المغادرة]]) -> 5
A133: 8756 | B133: أحمد خالد عبدالقادر العزه | C133: العمليات | D133: 2015-01-09 | E133: 2021-02-20 | F133: 2 | G133: 1 | H133: 5 | I133: 1 | J133: 4 | K133: 5 | L133: 2 | M133: 4 | N133: 4 | O133: 4 | T133: الراتب والمميزات - Salary & Benefits | V133: =(Table3[[#This Row],[تاريخ المغادرة]]-Table3[[#This Row],[تاريخ المباشرة]])/365 -> 6.120547945 | W133: =MONTH(Table3[[#This Row],[تاريخ المغادرة]]) -> 2
A134: 7573 | B134: احمد خالد عبدالله الله | C134: العمليات | D134: 2016-12-22 | E134: 2021-02-10 | F134: 2 | G134: 4 | H134: 5 | I134: 4 | J134: 2 | K134: 2 | L134: 2 | M134: 1 | N134: 4 | O134: 3 | T134: الراتب والمميزات - Salary & Benefits | V134: =(Table3[[#This Row],[تاريخ المغادرة]]-Table3[[#This Row],[تاريخ المباشرة]])/365 -> 4.139726027 | W134: =MONTH(Table3[[#This Row],[تاريخ المغادرة]]) -> 2
A135: 4638 | B135: حسام نعمان عبد | C135: العمليات | D135: 2012-11-20 | E135: 2021-01-25 | F135: 1 | G135: 4 | H135: 4 | I135: 3 | J135: 5 | K135: 4 | L135: 2 | M135: 4 | N135: 4 | O135: 2 | T135: الإنتقال إلى جهة حكومية Joining Gov. | V135: =(Table3[[#This Row],[تاريخ المغادرة]]-Table3[[#This Row],[تاريخ المباشرة]])/365 -> 8.18630137 | W135: =MONTH(Table3[[#This Row],[تاريخ المغادرة]]) -> 1
A136: 5521 | B136: خالد موسى الرفاعي أتاسي منصور | C136: العمليات | D136: 2020-09-18 | E136: 2021-01-18 | F136: 5 | G136: 3 | H136: 1 | I136: 4 | J136: 2 | K136: 1 | L136: 2 | M136: 4 | N136: 1 | O136: 3 | T136: الراتب والمميزات - Salary & Benefits | V136: =(Table3[[#This Row],[تاريخ المغادرة]]-Table3[[#This Row],[تاريخ المباشرة]])/365 -> 0.3342465753 | W136: =MONTH(Table3[[#This Row],[تاريخ المغادرة]]) -> 1
A137: 2009 | B137: ايمن يحيى غالب احمد | C137: المستودعات | D137: 2013-11-13 | E137: 2021-02-01 | F137: 1 | G137: 1 | H137: 2 | I137: 4 | J137: 3 | K137: 4 | L137: 2 | M137: 5 | N137: 5 | O137: 3 | T137: مضايقة مديري أو زملائي Harassment of my manager or colleagues | V137: =(Table3[[#This Row],[تاريخ المغادرة]]-Table3[[#This Row],[تاريخ المباشرة]])/365 -> 7.224657534 | W137: =MONTH(Table3[[#This Row],[تاريخ المغادرة]]) -> 2
A138: 7746 | B138: زكريا محمدصبري مصطفى عمايره | C138: العمليات | D138: 2011-03-27 | E138: 2021-04-01 | F138: 2 | G138: 2 | H138: 4 | I138: 3 | J138: 1 | K138: 1 | L138: 3 | M138: 5 | N138: 5 | O138: 3 | T138: بيئة العمل غير محفزة Disengagement in work environment | V138: =(Table3[[#This Row],[تاريخ المغادرة]]-Table3[[#This Row],[تاريخ المباشرة]])/365 -> 10.02191781 | W138: =MONTH(Table3[[#This Row],[تاريخ المغادرة]]) -> 4
A139: 8837 | B139: عبدالواحد الدين محمد ابوشقره | C139: العمليات | D139: 2019-03-23 | E139: 2021-03-24 | F139: 3 | G139: 4 | H139: 3 | I139: 4 | J139: 1 | K139: 4 | L139: 2 | M139: 5 | N139: 5 | O139: 2 | T139: ظروف عائلية Family issues | V139: =(Table3[[#This Row],[تاريخ المغادرة]]-Table3[[#This Row],[تاريخ المباشرة]])/365 -> 2.005479452 | W139: =MONTH(Table3[[#This Row],[تاريخ المغادرة]]) -> 3
A140: 7217 | B140: محي سامي محمد العلواني بكر | C140: العمليات | D140: 2015-11-11 | E140: 2021-05-16 | F140: 3 | G140: 1 | H140: 3 | I140: 4 | J140: 5 | K140: 3 | L140: 2 | M140: 5 | N140: 1 | O140: 4 | T140: أخرى Other | V140: =(Table3[[#This Row],[تاريخ المغادرة]]-Table3[[#This Row],[تاريخ المباشرة]])/365 -> 5.515068493 | W140: =MONTH(Table3[[#This Row],[تاريخ المغادرة]]) -> 5
A141: 5887 | B141: اياس نبيل جابر بني | C141: العمليات | D141: 2011-11-29 | E141: 2021-05-11 | F141: 2 | G141: 5 | H141: 5 | I141: 2 | J141: 3 | K141: 4 | L141: 2 | M141: 2 | N141: 4 | O141: 2 | T141: الراتب والمميزات - Salary & Benefits | V141: =(Table3[[#This Row],[تاريخ المغادرة]]-Table3[[#This Row],[تاريخ المباشرة]])/365 -> 9.454794521 | W141: =MONTH(Table3[[#This Row],[تاريخ المغادرة]]) -> 5
A142: 1056 | B142: خالد مهند علي الجغيمي | C142: العمليات | D142: 2020-05-08 | E142: 2021-03-12 | F142: 3 | G142: 4 | H142: 4 | I142: 2 | J142: 3 | K142: 5 | L142: 2 | M142: 5 | N142: 5 | O142: 2 | T142: الحصول على فرصة أفضل Better Opportunity | V142: =(Table3[[#This Row],[تاريخ المغادرة]]-Table3[[#This Row],[تاريخ المباشرة]])/365 -> 0.8438356164 | W142: =MONTH(Table3[[#This Row],[تاريخ المغادرة]]) -> 3
A143: 8351 | B143: أزهر رسمي محمد الحنيفات | C143: العمليات | D143: 2019-11-19 | E143: 2021-02-11 | F143: 1 | G143: 4 | H143: 4 | I143: 4 | J143: 2 | K143: 2 | L143: 2 | M143: 1 | N143: 1 | O143: 1 | T143: الإنتقال إلى جهة حكومية Joining Gov. | V143: =(Table3[[#This Row],[تاريخ المغادرة]]-Table3[[#This Row],[تاريخ المباشرة]])/365 -> 1.232876712 | W143: =MONTH(Table3[[#This Row],[تاريخ المغادرة]]) -> 2
A144: 2955 | B144: الاء سعيد موسى مرعي | C144: العمليات | D144: 2019-03-20 | E144: 2021-04-16 | F144: 3 | G144: 2 | H144: 2 | I144: 1 | J144: 2 | K144: 5 | L144: 2 | M144: 4 | N144: 3 | O144: 5 | T144: الراتب والمميزات - Salary & Benefits | V144: =(Table3[[#This Row],[تاريخ المغادرة]]-Table3[[#This Row],[تاريخ المباشرة]])/365 -> 2.076712329 | W144: =MONTH(Table3[[#This Row],[تاريخ المغادرة]]) -> 4
A145: 9597 | B145: بيان عمر محمد | C145: العمليات | D145: 2020-01-31 | E145: 2021-02-25 | F145: 3 | G145: 3 | H145: 5 | I145: 3 | J145: 4 | K145: 1 | L145: 3 | M145: 4 | N145: 2 | O145: 1 | T145: مضايقة مديري أو زملائي Harassment of my manager or colleagues | V145: =(Table3[[#This Row],[تاريخ المغادرة]]-Table3[[#This Row],[تاريخ المباشرة]])/365 -> 1.071232877 | W145: =MONTH(Table3[[#This Row],[تاريخ المغادرة]]) -> 2
A146: 2022 | B146: لين بسام رشيد الزعبي | C146: العمليات | D146: 2018-02-01 | E146: 2021-05-11 | F146: 1 | G146: 5 | H146: 5 | I146: 2 | J146: 5 | K146: 2 | L146: 2 | M146: 1 | N146: 2 | O146: 3 | T146: بيئة العمل غير محفزة Disengagement in work environment | V146: =(Table3[[#This Row],[تاريخ المغادرة]]-Table3[[#This Row],[تاريخ المباشرة]])/365 -> 3.273972603 | W146: =MONTH(Table3[[#This Row],[تاريخ المغادرة]]) -> 5
A147: 5562 | B147: هيثم خالد فلاح عيسى | C147: المستودعات | D147: 2015-12-03 | E147: 2021-03-28 | F147: 5 | G147: 1 | H147: 4 | I147: 4 | J147: 4 | K147: 2 | L147: 2 | M147: 4 | N147: 1 | O147: 5 | T147: ظروف عائلية Family issues | V147: =(Table3[[#This Row],[تاريخ المغادرة]]-Table3[[#This Row],[تاريخ المباشرة]])/365 -> 5.320547945 | W147: =MONTH(Table3[[#This Row],[تاريخ المغادرة]]) -> 3
A148: 9942 | B148: صبحيه ابراهيم فارس إبراهيم | C148: العمليات | D148: 2016-12-01 | E148: 2021-02-04 | F148: 5 | G148: 4 | H148: 4 | I148: 3 | J148: 3 | K148: 4 | L148: 2 | M148: 1 | N148: 1 | O148: 5 | T148: أخرى Other | V148: =(Table3[[#This Row],[تاريخ المغادرة]]-Table3[[#This Row],[تاريخ المباشرة]])/365 -> 4.180821918 | W148: =MONTH(Table3[[#This Row],[تاريخ المغادرة]]) -> 2
A149: 6088 | B149: طارق محمد يونس العلمي | C149: العمليات | D149: 2015-06-08 | E149: 2021-02-16 | F149: 5 | G149: 2 | H149: 3 | I149: 2 | J149: 3 | K149: 1 | L149: 1 | M149: 5 | N149: 5 | O149: 5 | T149: الراتب والمميزات - Salary & Benefits | V149: =(Table3[[#This Row],[تاريخ المغادرة]]-Table3[[#This Row],[تاريخ المباشرة]])/365 -> 5.698630137 | W149: =MONTH(Table3[[#This Row],[تاريخ المغادرة]]) -> 2
A150: 6264 | B150: فارس بسام محمد هياجنه بطاينة | C150: العمليات | D150: 2015-10-02 | E150: 2021-02-06 | F150: 3 | G150: 1 | H150: 5 | I150: 3 | J150: 1 | K150: 1 | L150: 2 | M150: 5 | N150: 3 | O150: 3 | T150: الحصول على فرصة أفضل Better Opportunity | V150: =(Table3[[#This Row],[تاريخ المغادرة]]-Table3[[#This Row],[تاريخ المباشرة]])/365 -> 5.353424658 | W150: =MONTH(Table3[[#This Row],[تاريخ المغادرة]]) -> 2
A151: 5587 | B151: آية أحمد احمد الدين | C151: العمليات | D151: 2011-09-20 | E151: 2021-03-17 | F151: 2 | G151: 4 | H151: 4 | I151: 5 | J151: 2 | K151: 2 | L151: 2 | M151: 2 | N151: 1 | O151: 2 | T151: الإنتقال إلى جهة حكومية Joining Gov. | V151: =(Table3[[#This Row],[تاريخ المغادرة]]-Table3[[#This Row],[تاريخ المباشرة]])/365 -> 9.495890411 | W151: =MONTH(Table3[[#This Row],[تاريخ المغادرة]]) -> 3
A152: 5851 | B152: ماجد وائل محي عبيدات | C152: العمليات | D152: 2020-05-31 | E152: 2021-03-20 | F152: 2 | G152: 4 | H152: 3 | I152: 5 | J152: 4 | K152: 3 | L152: 2 | M152: 2 | N152: 5 | O152: 2 | T152: تغيير مكان سكني Relocate to other place | V152: =(Table3[[#This Row],[تاريخ المغادرة]]-Table3[[#This Row],[تاريخ المباشرة]])/365 -> 0.802739726 | W152: =MONTH(Table3[[#This Row],[تاريخ المغادرة]]) -> 3
A153: 9991 | B153: اسيل زياد محمد الفاضل | C153: العمليات | D153: 2010-12-22 | E153: 2021-04-01 | F153: 5 | G153: 3 | H153: 1 | I153: 5 | J153: 4 | K153: 5 | L153: 2 | M153: 2 | N153: 1 | O153: 2 | T153: مضايقة مديري أو زملائي Harassment of my manager or colleagues | V153: =(Table3[[#This Row],[تاريخ المغادرة]]-Table3[[#This Row],[تاريخ المباشرة]])/365 -> 10.28219178 | W153: =MONTH(Table3[[#This Row],[تاريخ المغادرة]]) -> 4
A154: 3068 | B154: عبدالله ياسين محمد الغامدي | C154: المستودعات | D154: 2013-06-13 | E154: 2021-02-24 | F154: 3 | G154: 4 | H154: 1 | I154: 2 | J154: 5 | K154: 5 | L154: 2 | M154: 1 | N154: 3 | O154: 5 | T154: بيئة العمل غير محفزة Disengagement in work environment | V154: =(Table3[[#This Row],[تاريخ المغادرة]]-Table3[[#This Row],[تاريخ المباشرة]])/365 -> 7.706849315 | W154: =MONTH(Table3[[#This Row],[تاريخ المغادرة]]) -> 2
A155: 1364 | B155: احمد عبدالرحمن مساعد الصمادى افتيحه | C155: المبيعات | D155: 2011-03-05 | E155: 2021-01-22 | F155: 5 | G155: 2 | H155: 5 | I155: 2 | J155: 2 | K155: 1 | L155: 2 | M155: 5 | N155: 4 | O155: 5 | T155: ظروف عائلية Family issues | V155: =(Table3[[#This Row],[تاريخ المغادرة]]-Table3[[#This Row],[تاريخ المباشرة]])/365 -> 9.893150685 | W155: =MONTH(Table3[[#This Row],[تاريخ المغادرة]]) -> 1
A156: 9900 | B156: فاطمه سالم ابراهيم زكي | C156: العمليات | D156: 2017-03-01 | E156: 2021-04-28 | F156: 2 | G156: 2 | H156: 3 | I156: 2 | J156: 3 | K156: 1 | L156: 2 | M156: 4 | N156: 1 | O156: 5 | T156: أخرى Other | V156: =(Table3[[#This Row],[تاريخ المغادرة]]-Table3[[#This Row],[تاريخ المباشرة]])/365 -> 4.161643836 | W156: =MONTH(Table3[[#This Row],[تاريخ المغادرة]]) -> 4
A157: 4349 | B157: مساعد حسين احمد العمرى | C157: المستودعات | D157: 2020-07-15 | E157: 2021-02-15 | F157: 2 | G157: 3 | H157: 3 | I157: 2 | J157: 3 | K157: 2 | L157: 1 | M157: 3 | N157: 2 | O157: 2 | T157: أخرى Other | V157: =(Table3[[#This Row],[تاريخ المغادرة]]-Table3[[#This Row],[تاريخ المباشرة]])/365 -> 0.5890410959 | W157: =MONTH(Table3[[#This Row],[تاريخ المغادرة]]) -> 2
A158: 2884 | B158: صهيب فخرى حسين الربضي مصطفى | C158: العمليات | D158: 2012-05-30 | E158: 2021-01-30 | F158: 5 | G158: 2 | H158: 4 | I158: 1 | J158: 2 | K158: 5 | L158: 2 | M158: 2 | N158: 3 | O158: 2 | T158: الراتب والمميزات - Salary & Benefits | V158: =(Table3[[#This Row],[تاريخ المغادرة]]-Table3[[#This Row],[تاريخ المباشرة]])/365 -> 8.676712329 | W158: =MONTH(Table3[[#This Row],[تاريخ المغادرة]]) -> 1
A159: 4029 | B159: وليد عبدالحافظ عناب | C159: العمليات | D159: 2018-01-29 | E159: 2021-05-19 | F159: 3 | G159: 4 | H159: 5 | I159: 3 | J159: 5 | K159: 3 | L159: 4 | M159: 4 | N159: 3 | O159: 2 | P159: التعاون | Q159: الرواتب | R159: التركيز على الإستراتيجية | S159: التركيز على الإستراتيجية | T159: الإنتقال إلى جهة حكومية Joining Gov. | V159: =(Table3[[#This Row],[تاريخ المغادرة]]-Table3[[#This Row],[تاريخ المباشرة]])/365 -> 3.304109589 | W159: =MONTH(Table3[[#This Row],[تاريخ المغادرة]]) -> 5

Sheet Sheet4
E3: 5 | F3: 4 | G3: 3 | H3: 2 | I3: 1
E4: راضي تماماً | F4: راضي | G4: محايد | H4: مقبول | I4: غير راضي
D5: هل مكان العمل مناسب صحياً وعملياً ؟ | E5: =COUNTIF(EvalDB!$F:$F,E$3) -> 32 | F5: =COUNTIF(EvalDB!$F:$F,F$3) -> 24 | G5: =COUNTIF(EvalDB!$F:$F,G$3) -> 33 | H5: =COUNTIF(EvalDB!$F:$F,H$3) -> 32 | I5: =COUNTIF(EvalDB!$F:$F,I$3) -> 37
D6: هل لديك إطلاع بالسياسات والأجراءات وهل ترى أنها مناسبة وعادلة؟ | E6: =COUNTIF(EvalDB!$G:$G,E$3) -> 24 | F6: =COUNTIF(EvalDB!$G:$G,F$3) -> 29 | G6: =COUNTIF(EvalDB!$G:$G,G$3) -> 31 | H6: =COUNTIF(EvalDB!$G:$G,H$3) -> 40 | I6: =COUNTIF(EvalDB!$G:$G,I$3) -> 34
D7: هل الرواتب المميزات الممنوحة لك جيدة وتكافئ وزن المهام المكلة إليك؟ | E7: =COUNTIF(EvalDB!$H:$H,E$3) -> 28 | F7: =COUNTIF(EvalDB!$H:$H,F$3) -> 32 | G7: =COUNTIF(EvalDB!$H:$H,G$3) -> 20 | H7: =COUNTIF(EvalDB!$H:$H,H$3) -> 56 | I7: =COUNTIF(EvalDB!$H:$H,I$3) -> 22
D8: هل ترى أن الشركة تولي اهتماماً بالموظفين؟ | E8: =COUNTIF(EvalDB!$I:$I,E$3) -> 22 | F8: =COUNTIF(EvalDB!$I:$I,F$3) -> 25 | G8: =COUNTIF(EvalDB!$I:$I,G$3) -> 28 | H8: =COUNTIF(EvalDB!$I:$I,H$3) -> 63 | I8: =COUNTIF(EvalDB!$I:$I,I$3) -> 20
D9: هل تلقيت الدعم المناسب من مديرك المباشر ؟ | E9: =COUNTIF(EvalDB!$J:$J,E$3) -> 23 | F9: =COUNTIF(EvalDB!$J:$J,F$3) -> 24 | G9: =COUNTIF(EvalDB!$J:$J,G$3) -> 25 | H9: =COUNTIF(EvalDB!$J:$J,H$3) -> 67 | I9: =COUNTIF(EvalDB!$J:$J,I$3) -> 19
D10: كيف ترى توجهات الشركة الإستراتيجية وقدرتها على التغيير؟ | E10: =COUNTIF(EvalDB!$K:$K,E$3) -> 19 | F10: =COUNTIF(EvalDB!$K:$K,F$3) -> 23 | G10: =COUNTIF(EvalDB!$K:$K,G$3) -> 20 | H10: =COUNTIF(EvalDB!$K:$K,H$3) -> 69 | I10: =COUNTIF(EvalDB!$K:$K,I$3) -> 27
D11: هل تلقيت التدريب المناسب؟ | E11: =COUNTIF(EvalDB!$L:$L,E$3) -> 5 | F11: =COUNTIF(EvalDB!$L:$L,F$3) -> 31 | G11: =COUNTIF(EvalDB!$L:$L,G$3) -> 22 | H11: =COUNTIF(EvalDB!$L:$L,H$3) -> 80 | I11: =COUNTIF(EvalDB!$L:$L,I$3) -> 20
D12: هل كان لديك وضوح تام بالمهام والمسؤوليات الموكلة إليك ؟ | E12: =COUNTIF(EvalDB!$M:$M,E$3) -> 28 | F12: =COUNTIF(EvalDB!$M:$M,F$3) -> 26 | G12: =COUNTIF(EvalDB!$M:$M,G$3) -> 26 | H12: =COUNTIF(EvalDB!$M:$M,H$3) -> 55 | I12: =COUNTIF(EvalDB!$M:$M,I$3) -> 23
D13: هل حصلت على فرصة الزيادة والترقية بطريقة عادلة ومنصفة ؟ | E13: =COUNTIF(EvalDB!$N:$N,E$3) -> 29 | F13: =COUNTIF(EvalDB!$N:$N,F$3) -> 31 | G13: =COUNTIF(EvalDB!$N:$N,G$3) -> 31 | H13: =COUNTIF(EvalDB!$N:$N,H$3) -> 31 | I13: =COUNTIF(EvalDB!$N:$N,I$3) -> 36
D14: مدى التعاون والعلاقات البنائة بين فريق العمل. | E14: =COUNTIF(EvalDB!$O:$O,E$3) -> 36 | F14: =COUNTIF(EvalDB!$O:$O,F$3) -> 62 | G14: =COUNTIF(EvalDB!$O:$O,G$3) -> 28 | H14: =COUNTIF(EvalDB!$O:$O,H$3) -> 19 | I14: =COUNTIF(EvalDB!$O:$O,I$3) -> 13
E20: =F4 -> راضي | F20: =G4 -> محايد | G20: =E4 -> راضي تماماً | H20: محايد | I20: =H4 -> مقبول | J20: =I4 -> غير راضي
D21: =D5 -> هل مكان العمل مناسب صحياً وعملياً ؟ | E21: =F5 -> 24 | F21: =G5/2 -> 16.5 | G21: =E5 -> 32 | H21: =-G5/2 -> -16.5 | I21: =-H5 -> -32 | J21: =-I5 -> -37
D22: هل لديك إطلاع بالسياسات والأجراءات وهل ترى أنها مناسبة وعادلة؟ | E22: =F6 -> 29 | F22: =G6/2 -> 15.5 | G22: =E6 -> 24 | H22: =-G6/2 -> -15.5 | I22: =-H6 -> -40 | J22: -34
D23: هل الرواتب المميزات الممنوحة لك جيدة وتكافئ وزن المهام المكلة إليك؟ | E23: 32 | F23: 10 | G23: 28 | H23: -10 | I23: -56 | J23: -22
D24: هل ترى أن الشركة تولي اهتماماً بالموظفين؟ | E24: 25 | F24: 14 | G24: 22 | H24: -14 | I24: -63 | J24: -20
D25: هل تلقيت الدعم المناسب من مديرك المباشر ؟ | E25: 24 | F25: 12.5 | G25: 23 | H25: -12.5 | I25: -67 | J25: -19
D26: كيف ترى توجهات الشركة الإستراتيجية وقدرتها على التغيير؟ | E26: 23 | F26: 10 | G26: 19 | H26: -10 | I26: -69 | J26: -27
D27: هل تلقيت التدريب المناسب؟ | E27: 31 | F27: 11 | G27: 5 | H27: -11 | I27: -80 | J27: -20
D28: هل كان لديك وضوح تام بالمهام والمسؤوليات الموكلة إليك ؟ | E28: 26 | F28: 13 | G28: 28 | H28: -13 | I28: -55 | J28: -23
D29: هل حصلت على فرصة الزيادة والترقية بطريقة عادلة ومنصفة ؟ | E29: 31 | F29: 15.5 | G29: 29 | H29: -15.5 | I29: -31 | J29: -36
D30: مدى التعاون والعلاقات البنائة بين فريق العمل. | E30: 62 | F30: 14 | G30: 36 | H30: -14 | I30: -19 | J30: -13
C57: Row Labels | D57: Count of الإسم
C58: الخدمات اللوجستية | D58: 9
C59: المالية | D59: 31
C60: المبيعات | D60: 15
C61: المستودعات | D61: 26
C62: الموارد البشرية | D62: 4
C63: العمليات | D63: 72
C64: Grand Total | D64: 157
C71: Row Labels | D71: Count of الإسم
C72: أخرى Other | D72: 22
C73: الإنتقال إلى جهة حكومية Joining Gov. | D73: 13
C74: الحصول على فرصة أفضل Better Opportunity | D74: 17
C75: الراتب والمميزات - Salary & Benefits | D75: 39
C76: بيئة العمل غير محفزة Disengagement in work environment | D76: 17
C77: تغيير مكان سكني Relocate to other place | D77: 12
C78: ظروف عائلية Family issues | D78: 20
C79: مضايقة مديري أو زملائي Harassment of my manager or colleagues | D79: 17
C80: Grand Total | D80: 157
C89: العمر مع الشركة | D89: عدد المنتهية خدماتهم
C90: من 10 سنوات فأعلى | D90: =COUNTIF(EvalDB!$V:$V,">"&10) -> 16
C91: أعلى من 5 سنوات وأقل من 10 | D91: =COUNTIFS(EvalDB!$V:$V,">="&5,EvalDB!$V:$V,"<"&10) -> 75
C92: سنتين وأقل من 5 سنوات | D92: =COUNTIFS(EvalDB!$V:$V,">="&2,EvalDB!$V:$V,"<"&5) -> 41
C93: أقل من سنتين | D93: =COUNTIF(EvalDB!$V:$V,"<"&2) -> 26
C96: الشهر | D96: عدد المنتهية خدماتهم
B97: 1 | C97: Jan | D97: =IF(COUNTIF(EvalDB!$W:$W,B97)=0,NA(),COUNTIF(EvalDB!$W:$W,B97)) -> 30
B98: 2 | C98: Feb | D98: =IF(COUNTIF(EvalDB!$W:$W,B98)=0,NA(),COUNTIF(EvalDB!$W:$W,B98)) -> 45
B99: 3 | C99: Mar | D99: =IF(COUNTIF(EvalDB!$W:$W,B99)=0,NA(),COUNTIF(EvalDB!$W:$W,B99)) -> 36
B100: 4 | C100: Apr | D100: =IF(COUNTIF(EvalDB!$W:$W,B100)=0,NA(),COUNTIF(EvalDB!$W:$W,B100)) -> 30
B101: 5 | C101: May | D101: =IF(COUNTIF(EvalDB!$W:$W,B101)=0,NA(),COUNTIF(EvalDB!$W:$W,B101)) -> 17
B102: 6 | C102: Jun | D102: =IF(COUNTIF(EvalDB!$W:$W,B102)=0,NA(),COUNTIF(EvalDB!$W:$W,B102)) -> 
B103: 7 | C103: Jul | D103: =IF(COUNTIF(EvalDB!$W:$W,B103)=0,NA(),COUNTIF(EvalDB!$W:$W,B103)) -> 
B104: 8 | C104: Aug | D104: =IF(COUNTIF(EvalDB!$W:$W,B104)=0,NA(),COUNTIF(EvalDB!$W:$W,B104)) -> 
B105: 9 | C105: Sep | D105: =IF(COUNTIF(EvalDB!$W:$W,B105)=0,NA(),COUNTIF(EvalDB!$W:$W,B105)) -> 
B106: 10 | C106: Oct | D106: =IF(COUNTIF(EvalDB!$W:$W,B106)=0,NA(),COUNTIF(EvalDB!$W:$W,B106)) -> 
B107: 11 | C107: Nov | D107: =IF(COUNTIF(EvalDB!$W:$W,B107)=0,NA(),COUNTIF(EvalDB!$W:$W,B107)) -> 
B108: 12 | C108: Dec | D108: =IF(COUNTIF(EvalDB!$W:$W,B108)=0,NA(),COUNTIF(EvalDB!$W:$W,B108)) -> 

Sheet Dashboard
C2: لوحة مراقبة المنتهية خدماتهم

Sheet EmpDB
A1: الرقم الوظيفي | B1: الإسم | C1: الجنسية | D1: تاريخ الميلاد | E1: تاريخ المباشرة | F1: الوظيفة | G1: القسم | H1: رقم الجوال | I1: رقم الهوية | J1: الأساسي | K1: بدل السكن | L1: بدل النقل | M1: الإجمالي | N1: تقييم الأداء
A2: 4029 | B2: وليد عبدالحافظ عناب | C2: غير سعودي | D2: 2000-12-28 | E2: 2018-01-29 | F2: المستشار المالي | G2: العمليات | H2: 560826056 | I2: 1328597839 | J2: 29879 | K2: 7469.75 | L2: 2987.9 | M2: 40336.65 | N2: 0.66
A3: 3645 | B3: احمد خالد قاسم عبابنه | C3: سعودي | D3: 2011-03-02 | E3: 2016-06-10 | F3: الناشر المكتبي | G3: المالية | H3: 586816759 | I3: 1525953264 | J3: 43621 | K3: 10905.25 | L3: 4362.1 | M3: 58888.35 | N3: 0.57
A4: 3747 | B4: راية احمد عطيه الطويل | C4: سعودي | D4: 1975-08-27 | E4: 2017-03-25 | F4: النجار | G4: المالية | H4: 595117932 | I4: 1971613555 | J4: 6315 | K4: 1578.75 | L4: 631.5 | M4: 8525.25 | N4: 0.57
A5: 4788 | B5: محمد يحيى محمد الغزاوى | C5: سعودي | D5: 2010-10-25 | E5: 2017-10-28 | F5: النجار | G5: الموارد البشرية | H5: 597991161 | I5: 1083695290 | J5: 2423 | K5: 605.75 | L5: 242.3 | M5: 3271.05 | N5: 1
A6: 9719 | B6: إباء جمال محمد الشرفات | C6: غير سعودي | D6: 1969-05-08 | E6: 2019-07-05 | F6: أمين المكتبة | G6: المستودعات | H6: 575397713 | I6: 1272113274 | J6: 63227 | K6: 15806.75 | L6: 6322.7 | M6: 85356.45 | N6: 0.95
A7: 1217 | B7: شهد احمد جعفر خريسات | C7: غير سعودي | D7: 1984-11-11 | E7: 2018-12-30 | F7: سباك | G7: الخدمات اللوجستية | H7: 586741508 | I7: 1651653205 | J7: 6704 | K7: 1676 | L7: 670.4 | M7: 9050.4 | N7: 0.29
A8: 3444 | B8: ميس هلال حمدان محيسن | C8: غير سعودي | D8: 1970-04-30 | E8: 2012-10-11 | F8: عامل صيانة وإصلاح | G8: الموارد البشرية | H8: 567438966 | I8: 1934010042 | J8: 32770 | K8: 8192.5 | L8: 3277 | M8: 44239.5 | N8: 0.95
A9: 3497 | B9: ايمان فرحان عطية الغزاوى | C9: غير سعودي | D9: 1995-04-27 | E9: 2018-03-18 | F9: كاتب | G9: العمليات | H9: 589040229 | I9: 1295684728 | J9: 30048 | K9: 7512 | L9: 3004.8 | M9: 40564.8 | N9: 0.96
A10: 5412 | B10: زينة يعقوب احمد مقدادي | C10: غير سعودي | D10: 1983-04-24 | E10: 2019-09-29 | F10: كيميائي | G10: العمليات | H10: 585547820 | I10: 1961737831 | J10: 53421 | K10: 13355.25 | L10: 5342.1 | M10: 72118.35 | N10: 0.25
A11: 3399 | B11: معاذ عبدالمجيد محمود مومني العاشه | C11: سعودي | D11: 1997-04-07 | E11: 2013-10-09 | F11: لوجيستي | G11: المبيعات | H11: 567262339 | I11: 1410647158 | J11: 10469 | K11: 2617.25 | L11: 1046.9 | M11: 14133.15 | N11: 0.39
A12: 2414 | B12: احمد ايمن محمد رشيد | C12: غير سعودي | D12: 1998-12-25 | E12: 2012-08-31 | F12: مترجم | G12: العمليات | H12: 573729702 | I12: 1507862923 | J12: 22730 | K12: 5682.5 | L12: 2273 | M12: 30685.5 | N12: 0.97
A13: 6424 | B13: محمود سليمان محمد صبح | C13: غير سعودي | D13: 1975-04-06 | E13: 2014-02-26 | F13: محاسب | G13: العمليات | H13: 575208090 | I13: 1511818424 | J13: 41795 | K13: 10448.75 | L13: 4179.5 | M13: 56423.25 | N13: 0.53
A14: 9000 | B14: بكر سمير محمود قزق | C14: سعودي | D14: 1967-01-23 | E14: 2016-05-27 | F14: محاسب | G14: الموارد البشرية | H14: 597149459 | I14: 1314018067 | J14: 67003 | K14: 16750.75 | L14: 6700.3 | M14: 90454.05 | N14: 0.26
A15: 7673 | B15: يوسف عبدالفتاح حسن الخليلي عطا | C15: غير سعودي | D15: 2008-12-12 | E15: 2010-04-15 | F15: محرر | G15: المستودعات | H15: 579541047 | I15: 1540712694 | J15: 9092 | K15: 2273 | L15: 909.2 | M15: 12274.2 | N15: 0.93
A16: 3639 | B16: سالي سليمان عبدالعزيز بني | C16: غير سعودي | D16: 1972-05-28 | E16: 2014-03-04 | F16: محرر | G16: الموارد البشرية | H16: 574263665 | I16: 1747302453 | J16: 56166 | K16: 14041.5 | L16: 5616.6 | M16: 75824.1 | N16: 0.28
A17: 7540 | B17: مياده عزت ابراهيم الحميد | C17: غير سعودي | D17: 1971-11-02 | E17: 2016-05-04 | F17: محلل أنظمة | G17: المبيعات | H17: 560391345 | I17: 1344531114 | J17: 51206 | K17: 12801.5 | L17: 5120.6 | M17: 69128.1 | N17: 0.99
A18: 5371 | B18: ميس مشهور احميدي مصطفى | C18: غير سعودي | D18: 2000-12-19 | E18: 2014-03-14 | F18: محلل نظم الكمبيوتر | G18: المبيعات | H18: 566926047 | I18: 1652402958 | J18: 6839 | K18: 1709.75 | L18: 683.9 | M18: 9232.65 | N18: 0.45
A19: 5616 | B19: ايهاب مدحت محمد بطايحة | C19: غير سعودي | D19: 1992-02-25 | E19: 2018-11-15 | F19: محلل نظم الكمبيوتر | G19: المالية | H19: 589317603 | I19: 1793553198 | J19: 24587 | K19: 6146.75 | L19: 2458.7 | M19: 33192.45 | N19: 0.39
A20: 4941 | B20: يمامه يحيى مصطفى المومني | C20: غير سعودي | D20: 1966-08-01 | E20: 2013-03-16 | F20: مدير تسويق | G20: المالية | H20: 571795218 | I20: 1375816941 | J20: 58249 | K20: 14562.25 | L20: 5824.9 | M20: 78636.15 | N20: 0.39
A21: 2986 | B21: اسيل عبدالله سليمان الروسان | C21: سعودي | D21: 1969-12-02 | E21: 2010-05-03 | F21: مراسل | G21: المالية | H21: 579716293 | I21: 1712545871 | J21: 1784 | K21: 446 | L21: 178.4 | M21: 2408.4 | N21: 0.51
A22: 7862 | B22: شيماء عزات جميل القيام | C22: غير سعودي | D22: 2003-01-07 | E22: 2012-06-19 | F22: مراسل | G22: المالية | H22: 580774789 | I22: 1752402684 | J22: 34899 | K22: 8724.75 | L22: 3489.9 | M22: 47113.65 | N22: 0.79
A23: 8014 | B23: هديل منير صالح القيس | C23: غير سعودي | D23: 2009-03-23 | E23: 2014-10-23 | F23: مساح | G23: المالية | H23: 570649735 | I23: 1482054732 | J23: 6925 | K23: 1731.25 | L23: 692.5 | M23: 9348.75 | N23: 0.27
A24: 4383 | B24: عمر حسني جاسم موصلي | C24: غير سعودي | D24: 1971-05-27 | E24: 2019-01-02 | F24: مساعد تنفيذي | G24: المستودعات | H24: 590866010 | I24: 1631726036 | J24: 33727 | K24: 8431.75 | L24: 3372.7 | M24: 45531.45 | N24: 0.68
A25: 7003 | B25: ساره جمال سليمان الجميلي | C25: سعودي | D25: 1989-06-15 | E25: 2012-04-20 | F25: مساعد تنفيذي | G25: المالية | H25: 572768846 | I25: 1171395033 | J25: 52800 | K25: 13200 | L25: 5280 | M25: 71280 | N25: 0.38
A26: 2190 | B26: فاطمة بسام عبدالله العيسى | C26: غير سعودي | D26: 1984-10-07 | E26: 2014-07-03 | F26: مصمم | G26: المستودعات | H26: 567832538 | I26: 1252345971 | J26: 7293 | K26: 1823.25 | L26: 729.3 | M26: 9845.55 | N26: 0.83
A27: 1994 | B27: وسيم عماد سلامه عبيدات | C27: غير سعودي | D27: 1980-04-01 | E27: 2016-06-16 | F27: مطور ويب | G27: المالية | H27: 572455292 | I27: 1484270854 | J27: 43685 | K27: 10921.25 | L27: 4368.5 | M27: 58974.75 | N27: 0.31
A28: 3324 | B28: زبيدة محمد احمد الرشدان | C28: سعودي | D28: 2004-06-12 | E28: 2014-11-07 | F28: مهندس مدني | G28: المالية | H28: 555412928 | I28: 1066234106 | J28: 37909 | K28: 9477.25 | L28: 3790.9 | M28: 51177.15 | N28: 0.74
A29: 5571 | B29: قدامه عادل حمد الصمادي خصاونه | C29: غير سعودي | D29: 1961-03-19 | E29: 2010-03-04 | F29: مهندس ميكانيكي | G29: المالية | H29: 568332169 | I29: 1109748703 | J29: 60032 | K29: 15008 | L29: 6003.2 | M29: 81043.2 | N29: 0.62
A30: 6629 | B30: حسن هيثم مصطفى الله الزعبي | C30: غير سعودي | D30: 1994-04-03 | E30: 2019-01-03 | F30: موظف الإستقبال | G30: الخدمات اللوجستية | H30: 565591381 | I30: 1951580253 | J30: 66444 | K30: 16611 | L30: 6644.4 | M30: 89699.4 | N30: 0.89
A31: 4923 | B31: تقى محمود ضيف فلاح | C31: سعودي | D31: 1960-11-05 | E31: 2014-08-02 | F31: ميكانيكي السيارات | G31: المالية | H31: 595394353 | I31: 1960127617 | J31: 42994 | K31: 10748.5 | L31: 4299.4 | M31: 58041.9 | N31: 0.85
A32: 6974 | B32: اريج ايمن زهير فني الدين | C32: غير سعودي | D32: 1960-12-16 | E32: 2019-11-16 | F32: ميكانيكي سيارات | G32: المستودعات | H32: 560139911 | I32: 1766682583 | J32: 40599 | K32: 10149.75 | L32: 4059.9 | M32: 54808.65 | N32: 0.55
A33: 8834 | B33: عمر احمد علي سعد | C33: غير سعودي | D33: 1965-04-17 | E33: 2011-06-23 | F33: المستشار المالي | G33: المستودعات | H33: 576207897 | I33: 1468805569 | J33: 31522 | K33: 7880.5 | L33: 3152.2 | M33: 42554.7 | N33: 0.35
A34: 6128 | B34: وسن تحسين سليم علي | C34: غير سعودي | D34: 1986-02-03 | E34: 2015-08-21 | F34: الناشر المكتبي | G34: المالية | H34: 599317579 | I34: 1600380562 | J34: 4096 | K34: 1024 | L34: 409.6 | M34: 5529.6 | N34: 0.71
A35: 1742 | B35: عبدالكريم هاني ذيب السقار | C35: غير سعودي | D35: 1992-04-29 | E35: 2016-10-14 | F35: النجار | G35: المالية | H35: 597551496 | I35: 1635571284 | J35: 48356 | K35: 12089 | L35: 4835.6 | M35: 65280.6 | N35: 0.34
A36: 9809 | B36: نور محمد محمد عزام شقلة | C36: سعودي | D36: 1972-04-24 | E36: 2010-04-23 | F36: النجار | G36: الخدمات اللوجستية | H36: 583716112 | I36: 1609102823 | J36: 50856 | K36: 12714 | L36: 5085.6 | M36: 68655.6 | N36: 0.39
A37: 7727 | B37: ماهر علي عبدالفتاح الفتاح البلادي | C37: غير سعودي | D37: 2011-01-02 | E37: 2018-10-18 | F37: أمين المكتبة | G37: الخدمات اللوجستية | H37: 574315422 | I37: 1633960094 | J37: 7106 | K37: 1776.5 | L37: 710.6 | M37: 9593.1 | N37: 0.99
A38: 3748 | B38: اسلام حمدي عبد الله | C38: غير سعودي | D38: 1983-06-06 | E38: 2012-02-17 | F38: سباك | G38: المستودعات | H38: 563163258 | I38: 1558785431 | J38: 5313 | K38: 1328.25 | L38: 531.3 | M38: 7172.55 | N38: 0.94
A39: 5583 | B39: دعاء نعيم ضيف الشلبي | C39: غير سعودي | D39: 1966-08-31 | E39: 2019-08-10 | F39: عامل صيانة وإصلاح | G39: الخدمات اللوجستية | H39: 589645838 | I39: 1250800521 | J39: 60365 | K39: 15091.25 | L39: 6036.5 | M39: 81492.75 | N39: 0.73
A40: 5356 | B40: آية عبدالله عبدالباري عواشره أبو حمد | C40: غير سعودي | D40: 1979-06-16 | E40: 2016-06-05 | F40: كاتب | G40: المالية | H40: 568757655 | I40: 1142030125 | J40: 16487 | K40: 4121.75 | L40: 1648.7 | M40: 22257.45 | N40: 0.49
A41: 5546 | B41: صافي عبداللطيف احمد الفراج روحي | C41: سعودي | D41: 1982-08-06 | E41: 2012-04-01 | F41: كيميائي | G41: المالية | H41: 559770596 | I41: 1531615896 | J41: 18445 | K41: 4611.25 | L41: 1844.5 | M41: 24900.75 | N41: 0.65
A42: 8501 | B42: بسمه علي رفة محمد ارشيد | C42: غير سعودي | D42: 2000-12-11 | E42: 2013-12-18 | F42: لوجيستي | G42: الخدمات اللوجستية | H42: 556202456 | I42: 1734519284 | J42: 28781 | K42: 7195.25 | L42: 2878.1 | M42: 38854.35 | N42: 0.61
A43: 5556 | B43: مها سعود عبدالله بني | C43: غير سعودي | D43: 1965-09-18 | E43: 2012-11-04 | F43: مترجم | G43: المالية | H43: 558440513 | I43: 1646674382 | J43: 69033 | K43: 17258.25 | L43: 6903.3 | M43: 93194.55 | N43: 0.81
A44: 3656 | B44: هالة روحي عبدالحليم كنعان | C44: سعودي | D44: 2002-10-25 | E44: 2018-08-12 | F44: محاسب | G44: المالية | H44: 576154492 | I44: 1635704282 | J44: 38939 | K44: 9734.75 | L44: 3893.9 | M44: 52567.65 | N44: 0.75
A45: 3970 | B45: محمد منير احمد الرقب | C45: غير سعودي | D45: 1978-11-19 | E45: 2018-04-28 | F45: محاسب | G45: المالية | H45: 585543386 | I45: 1824671849 | J45: 59446 | K45: 14861.5 | L45: 5944.6 | M45: 80252.1 | N45: 0.59
A46: 6617 | B46: رغد سعيد احمد الحسن | C46: سعودي | D46: 1966-11-27 | E46: 2016-04-21 | F46: محرر | G46: المالية | H46: 566591674 | I46: 1165742686 | J46: 64642 | K46: 16160.5 | L46: 6464.2 | M46: 87266.7 | N46: 1
A47: 7532 | B47: دانا يوسف بخيت فردوس | C47: غير سعودي | D47: 1961-11-10 | E47: 2011-04-24 | F47: محرر | G47: المالية | H47: 558883211 | I47: 1977633109 | J47: 46809 | K47: 11702.25 | L47: 4680.9 | M47: 63192.15 | N47: 0.42
A48: 1809 | B48: هبه جديع عبدالكريم بدوره شخددم | C48: غير سعودي | D48: 1997-03-08 | E48: 2011-11-16 | F48: محلل أنظمة | G48: المستودعات | H48: 573378184 | I48: 1163724520 | J48: 27722 | K48: 6930.5 | L48: 2772.2 | M48: 37424.7 | N48: 0.74
A49: 9681 | B49: رهف اكرم أحمد عبيدات ابو | C49: سعودي | D49: 1960-02-08 | E49: 2020-06-12 | F49: محلل نظم الكمبيوتر | G49: المالية | H49: 560771653 | I49: 1486249925 | J49: 33322 | K49: 8330.5 | L49: 3332.2 | M49: 44984.7 | N49: 0.98
A50: 3990 | B50: ساجده مجدي عبدالعزيز صبحي | C50: غير سعودي | D50: 1964-02-21 | E50: 2010-08-18 | F50: محلل نظم الكمبيوتر | G50: المالية | H50: 560410291 | I50: 1560117773 | J50: 37817 | K50: 9454.25 | L50: 3781.7 | M50: 51052.95 | N50: 0.53
A51: 5985 | B51: رانيا حسين محمد الراشد شرير | C51: سعودي | D51: 1998-12-11 | E51: 2018-12-02 | F51: مدير تسويق | G51: المالية | H51: 558753853 | I51: 1351007404 | J51: 69055 | K51: 17263.75 | L51: 6905.5 | M51: 93224.25 | N51: 0.54
A52: 7163 | B52: هديل امجد علي موسى | C52: غير سعودي | D52: 1970-11-17 | E52: 2013-04-03 | F52: مراسل | G52: المالية | H52: 590495677 | I52: 1943033522 | J52: 51541 | K52: 12885.25 | L52: 5154.1 | M52: 69580.35 | N52: 0.49
A53: 7043 | B53: الاء عبدالله جمال العاني الداود | C53: غير سعودي | D53: 1991-12-06 | E53: 2012-02-11 | F53: مراسل | G53: المالية | H53: 595483131 | I53: 1846037915 | J53: 25956 | K53: 6489 | L53: 2595.6 | M53: 35040.6 | N53: 0.55
A54: 5250 | B54: بتلاء محمد رشيد موسى | C54: سعودي | D54: 1990-11-06 | E54: 2018-12-20 | F54: مساح | G54: المالية | H54: 557273444 | I54: 1355685633 | J54: 10934 | K54: 2733.5 | L54: 1093.4 | M54: 14760.9 | N54: 0.26
A55: 1591 | B55: هبة مازن شكري السقا | C55: غير سعودي | D55: 1974-04-22 | E55: 2018-06-28 | F55: مساعد تنفيذي | G55: المستودعات | H55: 555398593 | I55: 1079275046 | J55: 7296 | K55: 1824 | L55: 729.6 | M55: 9849.6 | N55: 0.76
A56: 4746 | B56: سؤدد محمد بركات سليمان | C56: غير سعودي | D56: 1971-05-01 | E56: 2011-06-12 | F56: مساعد تنفيذي | G56: المبيعات | H56: 557730836 | I56: 1743488066 | J56: 41039 | K56: 10259.75 | L56: 4103.9 | M56: 55402.65 | N56: 0.37
A57: 6023 | B57: عبدالحكيم زهير محمد الصبح | C57: غير سعودي | D57: 1998-12-08 | E57: 2020-03-08 | F57: مصمم | G57: المالية | H57: 597763831 | I57: 1502130607 | J57: 5653 | K57: 1413.25 | L57: 565.3 | M57: 7631.55 | N57: 0.98
A58: 1593 | B58: بركات خليل سعيد الصالحي بدحان ارشيد | C58: سعودي | D58: 1997-09-27 | E58: 2017-07-02 | F58: مطور ويب | G58: المستودعات | H58: 557660328 | I58: 1791711679 | J58: 19040 | K58: 4760 | L58: 1904 | M58: 25704 | N58: 0.42
A59: 6164 | B59: فرح منذر عبدالرحمن عفانه محسن | C59: غير سعودي | D59: 1966-09-19 | E59: 2015-08-17 | F59: مهندس مدني | G59: المالية | H59: 572402366 | I59: 1248247104 | J59: 17773 | K59: 4443.25 | L59: 1777.3 | M59: 23993.55 | N59: 0.58
A60: 2467 | B60: يزيد محمد محمد ارشيد | C60: سعودي | D60: 1988-11-15 | E60: 2011-04-30 | F60: مهندس ميكانيكي | G60: الخدمات اللوجستية | H60: 565764359 | I60: 1543919612 | J60: 56237 | K60: 14059.25 | L60: 5623.7 | M60: 75919.95 | N60: 0.81
A61: 9185 | B61: امجد وليد بدحان البكار | C61: غير سعودي | D61: 1964-02-26 | E61: 2013-08-01 | F61: موظف الإستقبال | G61: المالية | H61: 598121063 | I61: 1158215103 | J61: 35072 | K61: 8768 | L61: 3507.2 | M61: 47347.2 | N61: 0.78
A62: 6885 | B62: محمد محسن محمد بشاره | C62: غير سعودي | D62: 2002-09-25 | E62: 2012-01-30 | F62: ميكانيكي السيارات | G62: المبيعات | H62: 555079761 | I62: 1137461986 | J62: 61499 | K62: 15374.75 | L62: 6149.9 | M62: 83023.65 | N62: 0.88
A63: 9913 | B63: يحيى ايمن محمود الشلختي | C63: غير سعودي | D63: 1994-02-26 | E63: 2010-01-13 | F63: ميكانيكي سيارات | G63: المالية | H63: 581745141 | I63: 1759894201 | J63: 33409 | K63: 8352.25 | L63: 3340.9 | M63: 45102.15 | N63: 1
A64: 2927 | B64: لجين ناصر محمد النقرش | C64: غير سعودي | D64: 2009-01-11 | E64: 2010-09-01 | F64: المستشار المالي | G64: العمليات | H64: 589698023 | I64: 1878435181 | J64: 40488 | K64: 10122 | L64: 4048.8 | M64: 54658.8 | N64: 0.72
A65: 8437 | B65: لينا هيثم حسن ابولاوى | C65: غير سعودي | D65: 1971-10-02 | E65: 2019-08-06 | F65: الناشر المكتبي | G65: العمليات | H65: 587741970 | I65: 1762326716 | J65: 16339 | K65: 4084.75 | L65: 1633.9 | M65: 22057.65 | N65: 0.38
A66: 6624 | B66: مجد اسماعيل سبتي فارس | C66: سعودي | D66: 1966-09-08 | E66: 2012-07-18 | F66: النجار | G66: المبيعات | H66: 557908440 | I66: 1651905667 | J66: 63493 | K66: 15873.25 | L66: 6349.3 | M66: 85715.55 | N66: 0.81
A67: 9142 | B67: يزيد خليل فارس | C67: غير سعودي | D67: 1979-07-12 | E67: 2013-05-30 | F67: النجار | G67: العمليات | H67: 555135550 | I67: 1451933890 | J67: 22654 | K67: 5663.5 | L67: 2265.4 | M67: 30582.9 | N67: 0.53
A68: 9476 | B68: احمد فريد فارس مراد | C68: غير سعودي | D68: 1964-06-15 | E68: 2019-03-08 | F68: أمين المكتبة | G68: العمليات | H68: 568087198 | I68: 1417403483 | J68: 28574 | K68: 7143.5 | L68: 2857.4 | M68: 38574.9 | N68: 0.71
A69: 2335 | B69: محمد كامل منير العبيني | C69: غير سعودي | D69: 1996-04-09 | E69: 2011-04-10 | F69: سباك | G69: العمليات | H69: 590286723 | I69: 1977013053 | J69: 43447 | K69: 10861.75 | L69: 4344.7 | M69: 58653.45 | N69: 0.5
A70: 5750 | B70: محمد وائل محمد الشبعان | C70: سعودي | D70: 1987-08-19 | E70: 2012-12-13 | F70: عامل صيانة وإصلاح | G70: المبيعات | H70: 596587187 | I70: 1798433721 | J70: 15916 | K70: 3979 | L70: 1591.6 | M70: 21486.6 | N70: 0.96
A71: 5173 | B71: أحمد احمد موسى السردية | C71: غير سعودي | D71: 1977-01-05 | E71: 2015-12-21 | F71: كاتب | G71: العمليات | H71: 560870349 | I71: 1353470351 | J71: 48163 | K71: 12040.75 | L71: 4816.3 | M71: 65020.05 | N71: 0.94
A72: 5642 | B72: محمد انيازي علي سعيد | C72: غير سعودي | D72: 1997-06-25 | E72: 2011-02-06 | F72: كيميائي | G72: الخدمات اللوجستية | H72: 559091781 | I72: 1062255308 | J72: 51481 | K72: 12870.25 | L72: 5148.1 | M72: 69499.35 | N72: 0.92
A73: 6996 | B73: سراه ثاني علي المساعيد | C73: سعودي | D73: 1988-05-02 | E73: 2013-08-29 | F73: لوجيستي | G73: العمليات | H73: 576453523 | I73: 1839800067 | J73: 57140 | K73: 14285 | L73: 5714 | M73: 77139 | N73: 0.96
A74: 9035 | B74: وفاء عزمي رفة عيسى | C74: غير سعودي | D74: 2006-08-22 | E74: 2010-06-07 | F74: مترجم | G74: المستودعات | H74: 593383071 | I74: 1636283688 | J74: 20782 | K74: 5195.5 | L74: 2078.2 | M74: 28055.7 | N74: 0.6
A75: 5536 | B75: شهد هاشم عثمان القضاه الحوراني | C75: سعودي | D75: 1979-08-31 | E75: 2010-10-02 | F75: محاسب | G75: العمليات | H75: 570115112 | I75: 1303966109 | J75: 6982 | K75: 1745.5 | L75: 698.2 | M75: 9425.7 | N75: 0.55
A76: 3766 | B76: شهد عبدالكريم علي سامي | C76: غير سعودي | D76: 1961-05-18 | E76: 2011-07-03 | F76: محاسب | G76: المبيعات | H76: 557074208 | I76: 1117318908 | J76: 46748 | K76: 11687 | L76: 4674.8 | M76: 63109.8 | N76: 0.47
A77: 4906 | B77: ملك عاطف الدين ساقي | C77: غير سعودي | D77: 2007-05-30 | E77: 2011-08-08 | F77: محرر | G77: المستودعات | H77: 564607610 | I77: 1240175637 | J77: 21024 | K77: 5256 | L77: 2102.4 | M77: 28382.4 | N77: 0.64
A78: 7275 | B78: تسنيم شرف محمد دياب | C78: سعودي | D78: 1974-10-18 | E78: 2019-04-03 | F78: محرر | G78: العمليات | H78: 585103941 | I78: 1692562261 | J78: 6478 | K78: 1619.5 | L78: 647.8 | M78: 8745.3 | N78: 1
A79: 3004 | B79: افنان ليث خير | C79: غير سعودي | D79: 1973-04-11 | E79: 2016-12-09 | F79: محلل أنظمة | G79: العمليات | H79: 593405414 | I79: 1408888666 | J79: 66855 | K79: 16713.75 | L79: 6685.5 | M79: 90254.25 | N79: 0.9
A80: 7284 | B80: اوراد محمد المحمود العبيني عناقره | C80: غير سعودي | D80: 1999-03-04 | E80: 2017-07-17 | F80: محلل نظم الكمبيوتر | G80: المستودعات | H80: 560255749 | I80: 1338837270 | J80: 64357 | K80: 16089.25 | L80: 6435.7 | M80: 86881.95 | N80: 0.81
A81: 1317 | B81: لمى عماد محمد حسن جابر | C81: سعودي | D81: 2011-10-08 | E81: 2012-10-18 | F81: محلل نظم الكمبيوتر | G81: العمليات | H81: 599604476 | I81: 1751484546 | J81: 69183 | K81: 17295.75 | L81: 6918.3 | M81: 93397.05 | N81: 0.36
A82: 5063 | B82: روان معتصم الدين خالد | C82: غير سعودي | D82: 1995-04-26 | E82: 2019-06-08 | F82: مدير تسويق | G82: العمليات | H82: 583396629 | I82: 1667904237 | J82: 27693 | K82: 6923.25 | L82: 2769.3 | M82: 37385.55 | N82: 0.63
A83: 5439 | B83: مهند صلاح محمد الخطيب | C83: غير سعودي | D83: 2011-11-29 | E83: 2017-11-06 | F83: مراسل | G83: المبيعات | H83: 575532769 | I83: 1286839209 | J83: 67952 | K83: 16988 | L83: 6795.2 | M83: 91735.2 | N83: 0.51
A84: 1964 | B84: يزن عدنان ياسين النمر | C84: غير سعودي | D84: 1981-10-23 | E84: 2012-12-06 | F84: مراسل | G84: العمليات | H84: 586968875 | I84: 1752060377 | J84: 14921 | K84: 3730.25 | L84: 1492.1 | M84: 20143.35 | N84: 0.53
A85: 9959 | B85: طلال محمد أدهم عمر | C85: سعودي | D85: 1978-06-16 | E85: 2020-07-18 | F85: مساح | G85: المستودعات | H85: 584577174 | I85: 1132526355 | J85: 25770 | K85: 6442.5 | L85: 2577 | M85: 34789.5 | N85: 0.64
A86: 6779 | B86: اسامه فارس محمد جوبي | C86: غير سعودي | D86: 1994-12-19 | E86: 2013-06-27 | F86: مساعد تنفيذي | G86: العمليات | H86: 588551268 | I86: 1797375740 | J86: 59105 | K86: 14776.25 | L86: 5910.5 | M86: 79791.75 | N86: 0.62
A87: 9351 | B87: أدهم عوض نصر طشطوش | C87: غير سعودي | D87: 1983-09-24 | E87: 2013-02-02 | F87: مساعد تنفيذي | G87: العمليات | H87: 558464384 | I87: 1698414198 | J87: 5837 | K87: 1459.25 | L87: 583.7 | M87: 7879.95 | N87: 0.76
A88: 5038 | B88: محمد الدين موسى العيشاوى | C88: سعودي | D88: 2003-10-01 | E88: 2013-09-21 | F88: مصمم | G88: العمليات | H88: 593438859 | I88: 1069162195 | J88: 3561 | K88: 890.25 | L88: 356.1 | M88: 4807.35 | N88: 0.52
A89: 9512 | B89: مجد غسان محمود الحمدان | C89: غير سعودي | D89: 1993-12-23 | E89: 2020-09-06 | F89: مطور ويب | G89: العمليات | H89: 574818355 | I89: 1928686221 | J89: 68609 | K89: 17152.25 | L89: 6860.9 | M89: 92622.15 | N89: 0.45
A90: 2713 | B90: عمرو جمال محمد الشرمان | C90: سعودي | D90: 1970-01-26 | E90: 2010-07-29 | F90: مهندس مدني | G90: المستودعات | H90: 591668960 | I90: 1315019042 | J90: 35476 | K90: 8869 | L90: 3547.6 | M90: 47892.6 | N90: 0.82
A91: 6113 | B91: عبدالوهاب فراس محمد الحوثي | C91: غير سعودي | D91: 1976-08-22 | E91: 2018-03-17 | F91: مهندس ميكانيكي | G91: العمليات | H91: 583777746 | I91: 1441850120 | J91: 42248 | K91: 10562 | L91: 4224.8 | M91: 57034.8 | N91: 0.74
A92: 1437 | B92: مجد علي عبدالله أبوغالي عيد | C92: سعودي | D92: 1996-05-27 | E92: 2018-04-13 | F92: موظف الإستقبال | G92: العمليات | H92: 588727156 | I92: 1521131580 | J92: 61485 | K92: 15371.25 | L92: 6148.5 | M92: 83004.75 | N92: 0.53
A93: 8327 | B93: وفاء عبدالله عبدالقادر ابو | C93: غير سعودي | D93: 1963-03-27 | E93: 2011-12-07 | F93: ميكانيكي السيارات | G93: العمليات | H93: 581497351 | I93: 1936590609 | J93: 9657 | K93: 2414.25 | L93: 965.7 | M93: 13036.95 | N93: 0.42
A94: 6787 | B94: محمد جمال حسن الجراح الكريم حسين | C94: غير سعودي | D94: 1972-08-28 | E94: 2019-08-13 | F94: ميكانيكي سيارات | G94: العمليات | H94: 582066509 | I94: 1539112480 | J94: 45912 | K94: 11478 | L94: 4591.2 | M94: 61981.2 | N94: 0.65
A95: 4480 | B95: محمد حكم محمود عبد حاج | C95: غير سعودي | D95: 1979-11-10 | E95: 2019-04-12 | F95: المستشار المالي | G95: العمليات | H95: 560160949 | I95: 1860342496 | J95: 17694 | K95: 4423.5 | L95: 1769.4 | M95: 23886.9 | N95: 0.75
A96: 2997 | B96: محمد عمر محمود ياسين | C96: غير سعودي | D96: 1976-09-26 | E96: 2016-05-12 | F96: الناشر المكتبي | G96: المستودعات | H96: 579666505 | I96: 1606378566 | J96: 66618 | K96: 16654.5 | L96: 6661.8 | M96: 89934.3 | N96: 0.69
A97: 2050 | B97: معاذ مازن الرحمن خميس | C97: غير سعودي | D97: 1970-10-31 | E97: 2010-02-22 | F97: النجار | G97: العمليات | H97: 562051318 | I97: 1639303551 | J97: 24679 | K97: 6169.75 | L97: 2467.9 | M97: 33316.65 | N97: 0.52
A98: 5987 | B98: علي عبد اسماعيل المعنقر | C98: سعودي | D98: 1960-07-24 | E98: 2011-11-11 | F98: النجار | G98: المبيعات | H98: 568049718 | I98: 1212747658 | J98: 3176 | K98: 794 | L98: 317.6 | M98: 4287.6 | N98: 0.84
A99: 1039 | B99: احمد رضوان خليف محسن | C99: غير سعودي | D99: 2003-08-26 | E99: 2013-02-12 | F99: أمين المكتبة | G99: العمليات | H99: 571360113 | I99: 1718373433 | J99: 44022 | K99: 11005.5 | L99: 4402.2 | M99: 59429.7 | N99: 0.73
A100: 9564 | B100: مرح حسن منذر الجاموس | C100: غير سعودي | D100: 1966-06-24 | E100: 2015-11-17 | F100: سباك | G100: المبيعات | H100: 588686432 | I100: 1516663953 | J100: 41639 | K100: 10409.75 | L100: 4163.9 | M100: 56212.65 | N100: 0.43
A101: 5041 | B101: محمد المجيد جبر الحلواني | C101: غير سعودي | D101: 1985-07-22 | E101: 2020-02-21 | F101: عامل صيانة وإصلاح | G101: العمليات | H101: 598977489 | I101: 1275361033 | J101: 50211 | K101: 12552.75 | L101: 5021.1 | M101: 67784.85 | N101: 0.35
A102: 3826 | B102: عبد محمد عبدالباقي زغير | C102: سعودي | D102: 2000-01-18 | E102: 2014-12-07 | F102: كاتب | G102: العمليات | H102: 557299213 | I102: 1238813003 | J102: 68613 | K102: 17153.25 | L102: 6861.3 | M102: 92627.55 | N102: 0.43
A103: 8316 | B103: عبدالله محمدغزوان زغير | C103: غير سعودي | D103: 1997-10-17 | E103: 2019-08-21 | F103: كيميائي | G103: العمليات | H103: 567118467 | I103: 1263412073 | J103: 68006 | K103: 17001.5 | L103: 6800.6 | M103: 91808.1 | N103: 0.74
A104: 9398 | B104: مازن كريم عجم الدرايسه | C104: سعودي | D104: 1981-05-25 | E104: 2015-03-05 | F104: لوجيستي | G104: العمليات | H104: 597253054 | I104: 1473462600 | J104: 47362 | K104: 11840.5 | L104: 4736.2 | M104: 63938.7 | N104: 0.91
A105: 5642 | B105: صبا خالد علي النمرى | C105: غير سعودي | D105: 1976-04-01 | E105: 2012-09-23 | F105: مترجم | G105: المستودعات | H105: 562167578 | I105: 1090206462 | J105: 14994 | K105: 3748.5 | L105: 1499.4 | M105: 20241.9 | N105: 0.82
A106: 8511 | B106: طارق محمد عادل الحسنات | C106: سعودي | D106: 2007-11-19 | E106: 2013-04-14 | F106: محاسب | G106: الخدمات اللوجستية | H106: 568667122 | I106: 1162851262 | J106: 28590 | K106: 7147.5 | L106: 2859 | M106: 38596.5 | N106: 0.58
A107: 2558 | B107: مراد زياد عبدالوهاب سعاده الحوامده | C107: غير سعودي | D107: 1987-06-29 | E107: 2020-03-09 | F107: محاسب | G107: العمليات | H107: 556070771 | I107: 1605940504 | J107: 61277 | K107: 15319.25 | L107: 6127.7 | M107: 82723.95 | N107: 0.5
A108: 4472 | B108: لينا يحيى مصطفى الفتاح | C108: غير سعودي | D108: 1961-09-04 | E108: 2010-08-04 | F108: محرر | G108: العمليات | H108: 584382203 | I108: 1409317793 | J108: 29094 | K108: 7273.5 | L108: 2909.4 | M108: 39276.9 | N108: 0.36
A109: 8554 | B109: زكريا سالم عبد عربيات | C109: غير سعودي | D109: 2005-10-15 | E109: 2016-11-05 | F109: محرر | G109: العمليات | H109: 583945369 | I109: 1218253372 | J109: 34566 | K109: 8641.5 | L109: 3456.6 | M109: 46664.1 | N109: 0.5
A110: 4159 | B110: باسل محمود محمود ملكاوي أبوقديس | C110: سعودي | D110: 1960-10-27 | E110: 2013-04-25 | F110: محلل أنظمة | G110: المبيعات | H110: 579853279 | I110: 1138323832 | J110: 35811 | K110: 8952.75 | L110: 3581.1 | M110: 48344.85 | N110: 0.91
A111: 8422 | B111: دانيه يونس علي احمد | C111: غير سعودي | D111: 1981-05-14 | E111: 2011-11-01 | F111: محلل نظم الكمبيوتر | G111: العمليات | H111: 573471535 | I111: 1685267183 | J111: 39033 | K111: 9758.25 | L111: 3903.3 | M111: 52694.55 | N111: 0.81
A112: 3308 | B112: محمود حسين خير شناق | C112: سعودي | D112: 1986-08-13 | E112: 2019-09-06 | F112: محلل نظم الكمبيوتر | G112: العمليات | H112: 573882231 | I112: 1733211872 | J112: 33828 | K112: 8457 | L112: 3382.8 | M112: 45667.8 | N112: 0.37
A113: 7630 | B113: صفوان محمد محمد الشواقفه | C113: غير سعودي | D113: 2006-01-31 | E113: 2011-07-05 | F113: مدير تسويق | G113: العمليات | H113: 594585166 | I113: 1924752795 | J113: 24456 | K113: 6114 | L113: 2445.6 | M113: 33015.6 | N113: 0.49
A114: 4087 | B114: احمد جمال محمود الدويرى | C114: غير سعودي | D114: 1984-01-13 | E114: 2016-01-01 | F114: مراسل | G114: المستودعات | H114: 583490223 | I114: 1251319138 | J114: 12414 | K114: 3103.5 | L114: 1241.4 | M114: 16758.9 | N114: 0.85
A115: 5199 | B115: احمد زهير خلف درادكه | C115: سعودي | D115: 1998-03-07 | E115: 2010-04-24 | F115: مراسل | G115: العمليات | H115: 562332756 | I115: 1462315653 | J115: 44913 | K115: 11228.25 | L115: 4491.3 | M115: 60632.55 | N115: 0.81
A116: 1068 | B116: رنيم علي محمود علوه | C116: غير سعودي | D116: 2010-03-21 | E116: 2013-10-24 | F116: مساح | G116: المبيعات | H116: 588962648 | I116: 1499397993 | J116: 16265 | K116: 4066.25 | L116: 1626.5 | M116: 21957.75 | N116: 0.8
A117: 6401 | B117: بيان وجيه محمد الناطور عطا | C117: سعودي | D117: 1993-06-18 | E117: 2018-06-13 | F117: مساعد تنفيذي | G117: المبيعات | H117: 570158112 | I117: 1275876321 | J117: 2610 | K117: 652.5 | L117: 261 | M117: 3523.5 | N117: 0.98
A118: 8560 | B118: غيداء هشام رضوان بني | C118: غير سعودي | D118: 1970-10-18 | E118: 2017-01-07 | F118: مساعد تنفيذي | G118: العمليات | H118: 557719968 | I118: 1076586240 | J118: 46599 | K118: 11649.75 | L118: 4659.9 | M118: 62908.65 | N118: 0.79
A119: 8725 | B119: ساره منصور محمد العدمات | C119: سعودي | D119: 2011-03-19 | E119: 2014-04-27 | F119: مصمم | G119: العمليات | H119: 558136424 | I119: 1482201387 | J119: 4396 | K119: 1099 | L119: 439.6 | M119: 5934.6 | N119: 0.58
A120: 8328 | B120: روان يوسف حسين عبابنه | C120: غير سعودي | D120: 1999-08-07 | E120: 2013-02-02 | F120: مطور ويب | G120: العمليات | H120: 596947878 | I120: 1610007350 | J120: 23811 | K120: 5952.75 | L120: 2381.1 | M120: 32144.85 | N120: 0.94
A121: 9921 | B121: جنان عبدالرحيم حسين جراح | C121: غير سعودي | D121: 2009-05-11 | E121: 2011-06-03 | F121: مهندس مدني | G121: العمليات | H121: 574828411 | I121: 1184389215 | J121: 52637 | K121: 13159.25 | L121: 5263.7 | M121: 71059.95 | N121: 0.57
A122: 6797 | B122: نمير محمد مفلح الهدار | C122: غير سعودي | D122: 2001-12-19 | E122: 2020-02-12 | F122: مهندس ميكانيكي | G122: العمليات | H122: 597376242 | I122: 1474821079 | J122: 19255 | K122: 4813.75 | L122: 1925.5 | M122: 25994.25 | N122: 0.81
A123: 7918 | B123: عبدالرحمن محمد علي ربيع المسدي | C123: غير سعودي | D123: 1977-04-30 | E123: 2017-11-27 | F123: موظف الإستقبال | G123: المستودعات | H123: 570588597 | I123: 1342378166 | J123: 49983 | K123: 12495.75 | L123: 4998.3 | M123: 67477.05 | N123: 0.87
A124: 2284 | B124: عبدالله حميد الحاج وصفي | C124: سعودي | D124: 1971-05-20 | E124: 2011-07-07 | F124: ميكانيكي السيارات | G124: العمليات | H124: 570661305 | I124: 1256482297 | J124: 51858 | K124: 12964.5 | L124: 5185.8 | M124: 70008.3 | N124: 0.4
A125: 3516 | B125: نور مصطفى الخير الرفاعي العجلوني | C125: غير سعودي | D125: 1990-07-13 | E125: 2018-01-23 | F125: ميكانيكي سيارات | G125: المستودعات | H125: 560781396 | I125: 1668053173 | J125: 36544 | K125: 9136 | L125: 3654.4 | M125: 49334.4 | N125: 0.81
A126: 2804 | B126: نور احمد عبداللطيف سعيد | C126: غير سعودي | D126: 1965-01-25 | E126: 2018-03-04 | F126: المستشار المالي | G126: العمليات | H126: 571738130 | I126: 1120803995 | J126: 18686 | K126: 4671.5 | L126: 1868.6 | M126: 25226.1 | N126: 0.97
A127: 1216 | B127: وصفي وجيه محمد الردايده | C127: سعودي | D127: 2005-09-25 | E127: 2016-03-25 | F127: الناشر المكتبي | G127: العمليات | H127: 557015753 | I127: 1509424042 | J127: 11123 | K127: 2780.75 | L127: 1112.3 | M127: 15016.05 | N127: 0.75
A128: 2651 | B128: أحمد عبدالسلام احمد القواقنه | C128: غير سعودي | D128: 1995-03-31 | E128: 2012-11-25 | F128: النجار | G128: العمليات | H128: 571187038 | I128: 1139691263 | J128: 12932 | K128: 3233 | L128: 1293.2 | M128: 17458.2 | N128: 0.38
A129: 9385 | B129: بتول وليد محمد الزعبي | C129: غير سعودي | D129: 1995-06-06 | E129: 2020-09-03 | F129: النجار | G129: العمليات | H129: 556253614 | I129: 1164677516 | J129: 22103 | K129: 5525.75 | L129: 2210.3 | M129: 29839.05 | N129: 0.52
A130: 5212 | B130: محمد اسامه يونس عمر | C130: سعودي | D130: 1998-01-23 | E130: 2015-06-29 | F130: أمين المكتبة | G130: العمليات | H130: 572530580 | I130: 1240305160 | J130: 37389 | K130: 9347.25 | L130: 3738.9 | M130: 50475.15 | N130: 0.66
A131: 4333 | B131: ايثار خالد عمر القاعود | C131: غير سعودي | D131: 1988-04-08 | E131: 2011-02-05 | F131: سباك | G131: المستودعات | H131: 580980286 | I131: 1232987736 | J131: 50036 | K131: 12509 | L131: 5003.6 | M131: 67548.6 | N131: 0.85
A132: 6582 | B132: محمد حسني محمود علاونه | C132: سعودي | D132: 1989-07-04 | E132: 2013-06-06 | F132: عامل صيانة وإصلاح | G132: المستودعات | H132: 595134350 | I132: 1770196629 | J132: 35606 | K132: 8901.5 | L132: 3560.6 | M132: 48068.1 | N132: 0.6
A133: 8756 | B133: أحمد خالد عبدالقادر العزه | C133: سعودي | D133: 1999-06-25 | E133: 2015-01-09 | F133: كاتب | G133: العمليات | H133: 587038358 | I133: 1171826873 | J133: 17652 | K133: 4413 | L133: 1765.2 | M133: 23830.2 | N133: 0.34
A134: 7573 | B134: احمد خالد عبدالله الله | C134: غير سعودي | D134: 1973-07-04 | E134: 2016-12-22 | F134: كيميائي | G134: العمليات | H134: 598842636 | I134: 1591724846 | J134: 20154 | K134: 5038.5 | L134: 2015.4 | M134: 27207.9 | N134: 0.66
A135: 4638 | B135: حسام نعمان عبد | C135: غير سعودي | D135: 1987-09-20 | E135: 2012-11-20 | F135: لوجيستي | G135: العمليات | H135: 578153331 | I135: 1746777617 | J135: 63554 | K135: 15888.5 | L135: 6355.4 | M135: 85797.9 | N135: 0.41
A136: 5521 | B136: خالد موسى الرفاعي أتاسي منصور | C136: غير سعودي | D136: 1981-10-24 | E136: 2020-09-18 | F136: مترجم | G136: العمليات | H136: 578628122 | I136: 1480878836 | J136: 28753 | K136: 7188.25 | L136: 2875.3 | M136: 38816.55 | N136: 0.89
A137: 2009 | B137: ايمن يحيى غالب احمد | C137: غير سعودي | D137: 1992-06-16 | E137: 2013-11-13 | F137: محاسب | G137: المستودعات | H137: 597590102 | I137: 1259458270 | J137: 28807 | K137: 7201.75 | L137: 2880.7 | M137: 38889.45 | N137: 0.36
A138: 7746 | B138: زكريا محمدصبري مصطفى عمايره | C138: سعودي | D138: 2005-09-28 | E138: 2011-03-27 | F138: محاسب | G138: العمليات | H138: 578688617 | I138: 1762761877 | J138: 32892 | K138: 8223 | L138: 3289.2 | M138: 44404.2 | N138: 0.35
A139: 8837 | B139: عبدالواحد الدين محمد ابوشقره | C139: غير سعودي | D139: 1985-05-01 | E139: 2019-03-23 | F139: محرر | G139: العمليات | H139: 580334190 | I139: 1776589321 | J139: 37600 | K139: 9400 | L139: 3760 | M139: 50760 | N139: 0.28
A140: 7217 | B140: محي سامي محمد العلواني بكر | C140: غير سعودي | D140: 1968-11-08 | E140: 2015-11-11 | F140: محرر | G140: العمليات | H140: 583067177 | I140: 1419375259 | J140: 7622 | K140: 1905.5 | L140: 762.2 | M140: 10289.7 | N140: 0.44
A141: 5887 | B141: اياس نبيل جابر بني | C141: غير سعودي | D141: 1983-02-14 | E141: 2011-11-29 | F141: محلل أنظمة | G141: العمليات | H141: 572232855 | I141: 1379360608 | J141: 30684 | K141: 7671 | L141: 3068.4 | M141: 41423.4 | N141: 0.46
A142: 1056 | B142: خالد مهند علي الجغيمي | C142: سعودي | D142: 1962-05-06 | E142: 2020-05-08 | F142: محلل نظم الكمبيوتر | G142: العمليات | H142: 588684049 | I142: 1714013649 | J142: 69428 | K142: 17357 | L142: 6942.8 | M142: 93727.8 | N142: 0.39
A143: 8351 | B143: أزهر رسمي محمد الحنيفات | C143: غير سعودي | D143: 1965-04-30 | E143: 2019-11-19 | F143: محلل نظم الكمبيوتر | G143: العمليات | H143: 596445484 | I143: 1360020931 | J143: 58364 | K143: 14591 | L143: 5836.4 | M143: 78791.4 | N143: 0.84
A144: 2955 | B144: الاء سعيد موسى مرعي | C144: سعودي | D144: 1978-11-13 | E144: 2019-03-20 | F144: مدير تسويق | G144: العمليات | H144: 580473834 | I144: 1316077828 | J144: 62992 | K144: 15748 | L144: 6299.2 | M144: 85039.2 | N144: 0.52
A145: 9597 | B145: بيان عمر محمد | C145: غير سعودي | D145: 1969-02-18 | E145: 2020-01-31 | F145: مراسل | G145: العمليات | H145: 560631872 | I145: 1292015692 | J145: 44925 | K145: 11231.25 | L145: 4492.5 | M145: 60648.75 | N145: 0.3
A146: 2022 | B146: لين بسام رشيد الزعبي | C146: سعودي | D146: 2000-09-04 | E146: 2018-02-01 | F146: مراسل | G146: العمليات | H146: 586777789 | I146: 1919974643 | J146: 18344 | K146: 4586 | L146: 1834.4 | M146: 24764.4 | N146: 0.95
A147: 5562 | B147: هيثم خالد فلاح عيسى | C147: غير سعودي | D147: 1967-11-12 | E147: 2015-12-03 | F147: مساح | G147: المستودعات | H147: 573350402 | I147: 1606332052 | J147: 61602 | K147: 15400.5 | L147: 6160.2 | M147: 83162.7 | N147: 0.87
A148: 9942 | B148: صبحيه ابراهيم فارس إبراهيم | C148: سعودي | D148: 1996-05-10 | E148: 2016-12-01 | F148: مساعد تنفيذي | G148: العمليات | H148: 560293343 | I148: 1840080060 | J148: 68135 | K148: 17033.75 | L148: 6813.5 | M148: 91982.25 | N148: 0.89
A149: 6088 | B149: طارق محمد يونس العلمي | C149: غير سعودي | D149: 1961-03-02 | E149: 2015-06-08 | F149: مساعد تنفيذي | G149: العمليات | H149: 583173284 | I149: 1609730971 | J149: 48060 | K149: 12015 | L149: 4806 | M149: 64881 | N149: 0.36
A150: 6264 | B150: فارس بسام محمد هياجنه بطاينة | C150: سعودي | D150: 1975-03-08 | E150: 2015-10-02 | F150: مصمم | G150: العمليات | H150: 556853960 | I150: 1309627932 | J150: 64030 | K150: 16007.5 | L150: 6403 | M150: 86440.5 | N150: 0.89
A151: 5587 | B151: آية أحمد احمد الدين | C151: غير سعودي | D151: 2009-03-24 | E151: 2011-09-20 | F151: مطور ويب | G151: العمليات | H151: 588583332 | I151: 1389402423 | J151: 50154 | K151: 12538.5 | L151: 5015.4 | M151: 67707.9 | N151: 0.88
A152: 5851 | B152: ماجد وائل محي عبيدات | C152: غير سعودي | D152: 2006-03-19 | E152: 2020-05-31 | F152: مهندس مدني | G152: العمليات | H152: 556156899 | I152: 1473196622 | J152: 2936 | K152: 734 | L152: 293.6 | M152: 3963.6 | N152: 0.31
A153: 9991 | B153: اسيل زياد محمد الفاضل | C153: سعودي | D153: 2007-07-25 | E153: 2010-12-22 | F153: مهندس ميكانيكي | G153: العمليات | H153: 599948363 | I153: 1481222836 | J153: 8231 | K153: 2057.75 | L153: 823.1 | M153: 11111.85 | N153: 0.39
A154: 3068 | B154: عبدالله ياسين محمد الغامدي | C154: غير سعودي | D154: 1963-09-09 | E154: 2013-06-13 | F154: موظف الإستقبال | G154: المستودعات | H154: 594677536 | I154: 1619255228 | J154: 49350 | K154: 12337.5 | L154: 4935 | M154: 66622.5 | N154: 0.32
A155: 1364 | B155: احمد عبدالرحمن مساعد الصمادى افتيحه | C155: غير سعودي | D155: 2010-10-20 | E155: 2011-03-05 | F155: ميكانيكي السيارات | G155: المبيعات | H155: 581939552 | I155: 1290653833 | J155: 10941 | K155: 2735.25 | L155: 1094.1 | M155: 14770.35 | N155: 0.27
A156: 9900 | B156: فاطمه سالم ابراهيم زكي | C156: سعودي | D156: 2003-08-03 | E156: 2017-03-01 | F156: ميكانيكي سيارات | G156: العمليات | H156: 562307670 | I156: 1569707922 | J156: 9824 | K156: 2456 | L156: 982.4 | M156: 13262.4 | N156: 0.8
A157: 4349 | B157: مساعد حسين احمد العمرى | C157: غير سعودي | D157: 2010-06-01 | E157: 2020-07-15 | F157: المستشار المالي | G157: المستودعات | H157: 567202711 | I157: 1513259848 | J157: 9980 | K157: 2495 | L157: 998 | M157: 13473 | N157: 0.48
A158: 2884 | B158: صهيب فخرى حسين الربضي مصطفى | C158: غير سعودي | D158: 2001-08-20 | E158: 2012-05-30 | F158: الناشر المكتبي | G158: العمليات | H158: 592788884 | I158: 1629875775 | J158: 59528 | K158: 14882 | L158: 5952.8 | M158: 80362.8 | N158: 0.7
A159: 1723 | B159: اميره نسيم سلطي ابو | C159: سعودي | D159: 2009-11-01 | E159: 2014-11-18 | F159: النجار | G159: الخدمات اللوجستية | H159: 559410463 | I159: 1522270178 | J159: 68274 | K159: 17068.5 | L159: 6827.4 | M159: 92169.9 | N159: 0.32
A160: 6717 | B160: احمد امجد احمد حتامله | C160: غير سعودي | D160: 2008-10-23 | E160: 2015-12-04 | F160: النجار | G160: العمليات | H160: 580495925 | I160: 1286915837 | J160: 24448 | K160: 6112 | L160: 2444.8 | M160: 33004.8 | N160: 0.27
A161: 5681 | B161: عيسى ابراهيم غازى ابنيان أبودلو | C161: سعودي | D161: 1975-09-17 | E161: 2020-08-01 | F161: أمين المكتبة | G161: المبيعات | H161: 598211422 | I161: 1630486912 | J161: 21056 | K161: 5264 | L161: 2105.6 | M161: 28425.6 | N161: 0.35
A162: 1694 | B162: محمد هاني سليمان علي | C162: غير سعودي | D162: 1988-02-02 | E162: 2020-09-07 | F162: سباك | G162: العمليات | H162: 567794815 | I162: 1402168297 | J162: 52500 | K162: 13125 | L162: 5250 | M162: 70875 | N162: 0.77
A163: 5916 | B163: لمى احمد علي صايغ | C163: غير سعودي | D163: 2007-06-26 | E163: 2015-07-28 | F163: عامل صيانة وإصلاح | G163: العمليات | H163: 599162219 | I163: 1762022021 | J163: 33220 | K163: 8305 | L163: 3322 | M163: 44847 | N163: 0.88
A164: 8662 | B164: دعاء محمد محمد السعافين | C164: غير سعودي | D164: 2001-12-26 | E164: 2011-01-29 | F164: كاتب | G164: العمليات | H164: 573670213 | I164: 1793562840 | J164: 3635 | K164: 908.75 | L164: 363.5 | M164: 4907.25 | N164: 0.94
A165: 2991 | B165: تسنيم حسن عامر | C165: سعودي | D165: 1990-09-13 | E165: 2019-01-29 | F165: كيميائي | G165: المبيعات | H165: 599491786 | I165: 1941430227 | J165: 4807 | K165: 1201.75 | L165: 480.7 | M165: 6489.45 | N165: 0.72
A166: 6051 | B166: إيمان ناصر خضراء جديتاوي | C166: غير سعودي | D166: 1965-09-26 | E166: 2020-03-25 | F166: لوجيستي | G166: العمليات | H166: 597305068 | I166: 1461419925 | J166: 18424 | K166: 4606 | L166: 1842.4 | M166: 24872.4 | N166: 0.27
A167: 1391 | B167: عفاف بن محمد العمري حمد | C167: سعودي | D167: 1992-05-11 | E167: 2013-10-17 | F167: مترجم | G167: العمليات | H167: 574990844 | I167: 1937515779 | J167: 27359 | K167: 6839.75 | L167: 2735.9 | M167: 36934.65 | N167: 0.97
A168: 7994 | B168: طارق حسين هاني بني العليمي | C168: غير سعودي | D168: 2000-06-11 | E168: 2019-07-02 | F168: محاسب | G168: العمليات | H168: 564237916 | I168: 1593983417 | J168: 11918 | K168: 2979.5 | L168: 1191.8 | M168: 16089.3 | N168: 0.68
A169: 7627 | B169: دانا بشار محمود بطاينه الحميد | C169: سعودي | D169: 2002-04-01 | E169: 2012-04-23 | F169: محاسب | G169: المبيعات | H169: 574087851 | I169: 1368892081 | J169: 59763 | K169: 14940.75 | L169: 5976.3 | M169: 80680.05 | N169: 0.6
A170: 7566 | B170: اسراء عيسى محمود عبد ملحم | C170: غير سعودي | D170: 1996-09-29 | E170: 2011-04-22 | F170: محرر | G170: العمليات | H170: 564324299 | I170: 1684933308 | J170: 22702 | K170: 5675.5 | L170: 2270.2 | M170: 30647.7 | N170: 0.79
A171: 7077 | B171: مؤيد محمد عبدالرحمن الغامدي بني | C171: غير سعودي | D171: 2004-12-26 | E171: 2016-10-05 | F171: محرر | G171: الخدمات اللوجستية | H171: 565491815 | I171: 1148066463 | J171: 13088 | K171: 3272 | L171: 1308.8 | M171: 17668.8 | N171: 0.4
A172: 2258 | B172: لارا احمد مسفر القادر | C172: سعودي | D172: 1978-10-18 | E172: 2013-12-11 | F172: محلل أنظمة | G172: العمليات | H172: 582880764 | I172: 1740978838 | J172: 16306 | K172: 4076.5 | L172: 1630.6 | M172: 22013.1 | N172: 0.77
A173: 3496 | B173: وفاء حامد عبد يوسف | C173: سعودي | D173: 2006-07-31 | E173: 2017-03-25 | F173: محلل نظم الكمبيوتر | G173: المستودعات | H173: 571090856 | I173: 1939258466 | J173: 37036 | K173: 9259 | L173: 3703.6 | M173: 49998.6 | N173: 0.83
A174: 9901 | B174: مسفر خالد منير عبابنه | C174: غير سعودي | D174: 1997-06-15 | E174: 2010-10-09 | F174: محلل نظم الكمبيوتر | G174: العمليات | H174: 557329276 | I174: 1374823290 | J174: 27611 | K174: 6902.75 | L174: 2761.1 | M174: 37274.85 | N174: 0.76
A175: 2566 | B175: رشا ابراهيم احمد ابوالهدى عليان | C175: غير سعودي | D175: 2008-02-24 | E175: 2016-09-06 | F175: مدير تسويق | G175: المبيعات | H175: 595646902 | I175: 1502143351 | J175: 23994 | K175: 5998.5 | L175: 2399.4 | M175: 32391.9 | N175: 0.48
A176: 3358 | B176: جمان عبدالفتاح احمد حسن | C176: غير سعودي | D176: 2008-08-15 | E176: 2015-04-26 | F176: مراسل | G176: المستودعات | H176: 572607058 | I176: 1590484732 | J176: 37253 | K176: 9313.25 | L176: 3725.3 | M176: 50291.55 | N176: 0.54
A177: 3213 | B177: اسراء عمار محمد عتوم | C177: غير سعودي | D177: 2006-08-17 | E177: 2012-10-21 | F177: مراسل | G177: العمليات | H177: 562181461 | I177: 1629749995 | J177: 32258 | K177: 8064.5 | L177: 3225.8 | M177: 43548.3 | N177: 0.54
A178: 6853 | B178: سيرين الريم محمود مبارك النمارنه | C178: غير سعودي | D178: 1963-08-18 | E178: 2010-05-16 | F178: مساح | G178: العمليات | H178: 592706668 | I178: 1240519053 | J178: 23342 | K178: 5835.5 | L178: 2334.2 | M178: 31511.7 | N178: 0.76
A179: 8689 | B179: ميس علي محمد سعيد | C179: غير سعودي | D179: 1967-12-15 | E179: 2018-09-04 | F179: مساعد تنفيذي | G179: المستودعات | H179: 569600836 | I179: 1751670599 | J179: 57353 | K179: 14338.25 | L179: 5735.3 | M179: 77426.55 | N179: 0.28
A180: 2879 | B180: بلقيس بركات محمد سرحان | C180: غير سعودي | D180: 1961-10-11 | E180: 2010-08-20 | F180: مساعد تنفيذي | G180: العمليات | H180: 567789200 | I180: 1758060859 | J180: 11031 | K180: 2757.75 | L180: 1103.1 | M180: 14891.85 | N180: 0.83
A181: 4624 | B181: علا ابراهيم محمد الرواش | C181: غير سعودي | D181: 2009-06-17 | E181: 2019-04-16 | F181: مصمم | G181: العمليات | H181: 580311357 | I181: 1380497178 | J181: 66177 | K181: 16544.25 | L181: 6617.7 | M181: 89338.95 | N181: 0.5
A182: 2770 | B182: ندى عبدالكريم محمد عازر | C182: غير سعودي | D182: 1981-12-18 | E182: 2018-03-04 | F182: مطور ويب | G182: المبيعات | H182: 555561382 | I182: 1928561795 | J182: 54392 | K182: 13598 | L182: 5439.2 | M182: 73429.2 | N182: 0.38
A183: 1862 | B183: دارين زكريا فرحان الزغول | C183: غير سعودي | D183: 1988-12-19 | E183: 2020-01-10 | F183: مهندس مدني | G183: العمليات | H183: 590333519 | I183: 1526716541 | J183: 18614 | K183: 4653.5 | L183: 1861.4 | M183: 25128.9 | N183: 0.25
A184: 3679 | B184: سجى غازي عبدالكريم مقدادى | C184: غير سعودي | D184: 1968-10-09 | E184: 2012-04-25 | F184: مهندس ميكانيكي | G184: المستودعات | H184: 577835160 | I184: 1703877136 | J184: 33766 | K184: 8441.5 | L184: 3376.6 | M184: 45584.1 | N184: 0.37
A185: 2815 | B185: سعاد وليد محمد الشطناوى | C185: غير سعودي | D185: 1985-07-07 | E185: 2013-07-08 | F185: موظف الإستقبال | G185: العمليات | H185: 583888729 | I185: 1525668008 | J185: 30528 | K185: 7632 | L185: 3052.8 | M185: 41212.8 | N185: 0.32
A186: 3168 | B186: احمد احمد عبدالحفيظ الخمايسه | C186: غير سعودي | D186: 1991-01-20 | E186: 2016-10-03 | F186: ميكانيكي السيارات | G186: العمليات | H186: 588192622 | I186: 1221433810 | J186: 61499 | K186: 15374.75 | L186: 6149.9 | M186: 83023.65 | N186: 0.69
A187: 3515 | B187: بيان نضال رويلي الحموري | C187: غير سعودي | D187: 1967-07-24 | E187: 2011-05-08 | F187: ميكانيكي سيارات | G187: العمليات | H187: 561102307 | I187: 1316807583 | J187: 11309 | K187: 2827.25 | L187: 1130.9 | M187: 15267.15 | N187: 0.57
A188: 5471 | B188: طارق رياض محمد الخطيب | C188: غير سعودي | D188: 1997-02-19 | E188: 2012-09-05 | F188: المستشار المالي | G188: العمليات | H188: 577944485 | I188: 1410350086 | J188: 63623 | K188: 15905.75 | L188: 6362.3 | M188: 85891.05 | N188: 0.54
A189: 1819 | B189: لؤي قاسم صالح المومني | C189: غير سعودي | D189: 2001-01-15 | E189: 2010-05-27 | F189: الناشر المكتبي | G189: المستودعات | H189: 575616779 | I189: 1770130911 | J189: 43264 | K189: 10816 | L189: 4326.4 | M189: 58406.4 | N189: 0.53
A190: 5118 | B190: رهف راضي احمد الحوراني فحماوي | C190: غير سعودي | D190: 1997-05-07 | E190: 2013-04-10 | F190: النجار | G190: العمليات | H190: 556397972 | I190: 1592396812 | J190: 26567 | K190: 6641.75 | L190: 2656.7 | M190: 35865.45 | N190: 0.81
A191: 2245 | B191: امال محمد محمود الله | C191: غير سعودي | D191: 1962-03-29 | E191: 2017-09-09 | F191: النجار | G191: العمليات | H191: 577860011 | I191: 1778702883 | J191: 51589 | K191: 12897.25 | L191: 5158.9 | M191: 69645.15 | N191: 0.58
A192: 8330 | B192: اريج مروان عبد بواعنه | C192: سعودي | D192: 1975-02-07 | E192: 2019-12-19 | F192: أمين المكتبة | G192: العمليات | H192: 586058327 | I192: 1951393340 | J192: 64655 | K192: 16163.75 | L192: 6465.5 | M192: 87284.25 | N192: 0.81
A193: 2123 | B193: دعاء ابراهيم محمد احميدان | C193: غير سعودي | D193: 2000-11-16 | E193: 2015-02-27 | F193: سباك | G193: العمليات | H193: 585292135 | I193: 1386663532 | J193: 44041 | K193: 11010.25 | L193: 4404.1 | M193: 59455.35 | N193: 0.55
A194: 5079 | B194: هاشم عبدالباسط خلف احمد | C194: غير سعودي | D194: 2008-01-31 | E194: 2013-12-22 | F194: عامل صيانة وإصلاح | G194: العمليات | H194: 583205280 | I194: 1253157829 | J194: 24967 | K194: 6241.75 | L194: 2496.7 | M194: 33705.45 | N194: 0.46
A195: 5347 | B195: لونا عصام اكرم الرشدان | C195: غير سعودي | D195: 1999-01-31 | E195: 2013-08-21 | F195: كاتب | G195: المستودعات | H195: 577881264 | I195: 1420815056 | J195: 26437 | K195: 6609.25 | L195: 2643.7 | M195: 35689.95 | N195: 0.85
A196: 1710 | B196: فاطمة عمران علي كليب | C196: غير سعودي | D196: 1994-03-04 | E196: 2014-10-21 | F196: كيميائي | G196: العمليات | H196: 569219935 | I196: 1548163773 | J196: 26375 | K196: 6593.75 | L196: 2637.5 | M196: 35606.25 | N196: 0.92
A197: 5287 | B197: روند احمد يوسف المغايره | C197: غير سعودي | D197: 1991-01-26 | E197: 2013-09-03 | F197: لوجيستي | G197: المبيعات | H197: 565846192 | I197: 1066472244 | J197: 61622 | K197: 15405.5 | L197: 6162.2 | M197: 83189.7 | N197: 0.34
A198: 8978 | B198: رند سلطان نايف البركات | C198: غير سعودي | D198: 1976-02-06 | E198: 2010-04-12 | F198: مترجم | G198: العمليات | H198: 593139214 | I198: 1904657510 | J198: 19914 | K198: 4978.5 | L198: 1991.4 | M198: 26883.9 | N198: 0.92
A199: 7376 | B199: اسلام معن احمد مسامح | C199: سعودي | D199: 1993-06-13 | E199: 2012-02-27 | F199: محاسب | G199: المبيعات | H199: 573063234 | I199: 1225044254 | J199: 31322 | K199: 7830.5 | L199: 3132.2 | M199: 42284.7 | N199: 0.82
A200: 7341 | B200: رند سالم محمد مطالقه | C200: غير سعودي | D200: 2009-04-15 | E200: 2019-11-29 | F200: محاسب | G200: العمليات | H200: 598020675 | I200: 1496808529 | J200: 48282 | K200: 12070.5 | L200: 4828.2 | M200: 65180.7 | N200: 0.71
... 629 more rows
